Cogmind - Beta 11 @@@ ROGUE MODE // 2022.03.18 @ 20:58:44 // AFD2020/Player2 Player: aoemica Result: Core destroyed Performance ------------- Evolutions (9) 4500 Regions Visited (30) 6000 Robots Destroyed (377) 1885 Value Destroyed (20399) 20399 Prototype IDs (306) 6120 Alien Tech Used (3) 600 Bonus (50536) 50536 TOTAL SCORE: 90040 Bonus ------- Triggered High Security 500 High Alert Combat Kills 6919 Follower Combat Kills 10336 Network Hubs Disabled 400 Aligned with FarCom 300 Met Data Miner 300 Met Warlord at Base 500 MAIN.C Attacked Warlord 500 Warlord Defense Kill 1170 Met R17 at Cetus 500 Found Hidden Lab 3000 Met R17 at Research 2000 Met Warlord at Research 2000 Pursued by Intercept 1500 Destroyed MAIN.C Guards 500 Met MAIN.C 5000 Destroyed MAIN.C Shell 5000 Destroyed MAIN.C 10000 Met Warlord at Command 2000 Met Architect 300 Destroyed A8 300 Destroyed A6 400 Friendly Fire -2889 Cogmind --------- Core Integrity 0/1600 Matter 126/300 Energy 684/840 System Corruption 0% Temperature Cool (0) Movement Treading (156) Location -1/Access_0 Parts ------- > --- POWER (3) -------- Zero-point Reactor Vortex Chain Reactor > --- PROPULSION (8) --- Armored Heavy Treads Experimental Biometal Heavy Treads Enhanced Armored Heavy Treads Enhanced Armored Heavy Treads > --- UTILITY (10) ----- Desublimator Coolant Network Huge Storage Unit Experimental Targeting Computer Experimental Targeting Computer Experimental Core Analyzer Improved Armor Integrity Analyzer Advanced Weapon Cycler AEGIS Remote Shield > --- WEAPON (5) ------- Hypervelocity Linear Accelerator Hypervelocity Linear Accelerator Graviton Cannon Blast Cannon > --- INVENTORY (25) --- Zero-point Reactor Zero-point Reactor Enhanced Armored Heavy Treads Advanced Power Amplifier Advanced Energy Well (500) Experimental Energy Well (600) Experimental Matter Compressor (500) Experimental Targeting Computer Experimental Targeting Computer Advanced Kinecellerator Advanced Kinecellerator Experimental Weapon Cycler Experimental Shield Generator Advanced Force Field Enhanced Nova Cannon Enhanced Nova Cannon Graviton Cannon Ragnarok Missile Launcher Z-bomb Delivery System Meganuke Peak State ------------ > --- POWER ------------ Improved Quantum Reactor Vortex Chain Reactor > --- PROPULSION ------- Armored Heavy Treads Experimental Biometal Heavy Treads Enhanced Armored Heavy Treads Enhanced Armored Heavy Treads > --- UTILITY ---------- Coolant Network Huge Storage Unit Spectral Analyzer Experimental Targeting Computer Experimental Core Analyzer Improved Armor Integrity Analyzer Advanced Weapon Cycler Experimental Powered Armor AEGIS Remote Shield > --- WEAPON ----------- Potential Cannon Multirail Multirail Graviton Cannon > --- INVENTORY -------- Improved Quantum Reactor Zero-point Reactor Zero-point Reactor Enhanced Armored Heavy Treads Advanced Energy Well Experimental Energy Well Experimental Matter Compressor Experimental Matter Compressor Experimental Matter Compressor Experimental Targeting Computer Experimental Targeting Computer Experimental Targeting Computer Precision Matter Filter Advanced Kinecellerator Advanced Kinecellerator Experimental Shield Generator Advanced Force Field Long-range Tractor Beam Transdimensional Reconstructor Blast Cannon Ragnarok Missile Launcher Z-bomb Delivery System Meganuke [Rating: 263] Favorites ----------- Power Zero-point Reactor Engine Improved Deuterium Engine Power Core Enhanced Fission Core Reactor Zero-point Reactor Propulsion Light Treads Treads Light Treads Leg Aluminum Leg Flight Unit Xenon Bombardment Thruster Utility Huge Storage Unit Device Advanced Heat Sink Storage Huge Storage Unit Processor Advanced Targeting Computer Hackware Deep Network Scanner Protection Improved Weapon Shielding Weapon Helical Railgun Energy Gun Improved Medium Laser Energy Cannon Potential Cannon Ballistic Gun Helical Railgun Ballistic Cannon Graviton Cannon Launcher Heavy Rocket Launcher Special Weapon Improved Plasma Cutter Piercing Weapon Force Lance Special Melee Weapon Datajack Build | -11 -10 -10 -9 -9 -9 -8 -8 -7 -7 -7 -7 -6 -6 -6 -6 -6 -6 -5 -5 -5 -5 -4 -4 -4 -4 -3 -2 -1 -1 -1 ------- Run | Scr Mat Min Mat Min Exi Min Mat Fac Low Low Dat Pro Fac Ext Cet Arc Hub Fac Upp Upp War Pro Fac Arm Lab Res Res Acc Com Ac0 Slots Evolved 18 | . . . 2 . . . 2 2 . . . . 2 . . . . 2 . . . . 2 . . 2 2 2 . . Power 2 | . . . . . . . . . . . . . . . . . . 1 . . . . . . . 1 . . . . Propulsion 6 | . . . 1 . . . . 1 . . . . 1 . . . . . . . . . 1 . . . 2 . . . Utility 8 | . . . 1 . . . 1 1 . . . . . . . . . 1 . . . . 1 . . 1 . 2 . . Weapon 2 | . . . . . . . 1 . . . . . 1 . . . . . . . . . . . . . . . . . Parts Attached 441 | . 4 . 18 2 10 4 18 7 7 4 . 3 11 11 7 5 8 38 8 4 18 3 16 42 23 20 15 29 92 14 Power 30 | . . . 1 . 1 . 2 2 . . . . 1 1 1 . . 3 . . . . 2 2 . 2 . 3 7 2 Engine 9 | . . . 1 . 1 . 2 2 . . . . 1 . . . . 1 . . . . . . . 1 . . . . Core 6 | . . . . . . . . . . . . . . 1 1 . . 2 . . . . 1 1 . . . . . . Reactor 15 | . . . . . . . . . . . . . . . . . . . . . . . 1 1 . 1 . 3 7 2 Propulsion 72 | . . . 6 . 4 1 6 3 . . . . 4 4 3 2 2 7 . . 2 . 4 6 1 . 2 . 15 . Treads 62 | . . . 6 . 4 1 6 3 . . . . 4 4 3 2 2 7 . . 2 . 4 6 1 . 2 . 5 . Leg 1 | . . . . . . . . . . . . . . . . . . . . . . . . . . . . . 1 . Wheel . | . . . . . . . . . . . . . . . . . . . . . . . . . . . . . . . Hover . | . . . . . . . . . . . . . . . . . . . . . . . . . . . . . . . Flight 9 | . . . . . . . . . . . . . . . . . . . . . . . . . . . . . 9 . Utility 180 | . 3 . 6 . 1 1 4 2 . . . 1 2 2 2 1 4 7 2 3 6 . 7 21 15 11 9 16 47 7 Device 141 | . 2 . 3 . . 1 3 2 . . . . 2 2 2 1 4 5 2 2 6 . 4 21 12 7 7 15 33 5 Storage 13 | . 1 . 1 . 1 . . . . . . 1 . . . . . . . . . . . . . . 1 1 7 . Processor 15 | . . . 1 . . . 1 . . . . . . . . . . 1 . 1 . . 1 . . 4 1 . 3 2 Hackware 5 | . . . . . . . . . . . . . . . . . . . . . . . . . 2 . . . 3 . Protection 6 | . . . 1 . . . . . . . . . . . . . . 1 . . . . 2 . 1 . . . 1 . Artifact . | . . . . . . . . . . . . . . . . . . . . . . . . . . . . . . . Weapon 159 | . 1 . 5 2 4 2 6 . 7 4 . 2 4 4 1 2 2 21 6 1 10 3 3 13 7 7 4 10 23 5 Energy Gun 41 | . . . 2 1 2 1 4 . 3 1 . 1 2 2 1 2 1 10 2 . 3 1 . . 1 1 . . . . Energy Cannon 14 | . . . . . . . . . . . . . . . . . . . . . 1 . . 1 2 1 . 2 7 . Ballistic Gun 60 | . 1 . 2 . 1 . 2 . 1 1 . . 2 2 . . 1 3 1 1 5 1 3 7 4 4 4 6 7 1 Ballistic Cannon 8 | . . . . . . . . . . . . . . . . . . 1 . . . . . . . . . . 3 4 Launcher 23 | . . . 1 1 . 1 . . 3 2 . 1 . . . . . 7 3 . . 1 . 1 . 1 . . 1 . Special Weapon 11 | . . . . . . . . . . . . . . . . . . . . . 1 . . 4 . . . 2 4 . Impact Weapon . | . . . . . . . . . . . . . . . . . . . . . . . . . . . . . . . Slashing Weapon . | . . . . . . . . . . . . . . . . . . . . . . . . . . . . . . . Piercing Weapon 1 | . . . . . . . . . . . . . . . . . . . . . . . . . . . . . 1 . Special Melee Weapon 1 | . . . . . 1 . . . . . . . . . . . . . . . . . . . . . . . . . Unidentified Prototypes 34 | . . . 2 . . . 1 1 . . . . 1 . 2 . . 1 . . 3 . . 4 8 3 1 1 4 2 Parts Lost 16 | . . . . . . . . . . . . . 1 1 1 . 4 1 . . . . . 2 . . . . 2 4 Power 1 | . . . . . . . . . . . . . . . . . . . . . . . . . . . . . 1 . Propulsion 2 | . . . . . . . . . . . . . 1 . 1 . . . . . . . . . . . . . . . Utility 4 | . . . . . . . . . . . . . . . . . 1 . . . . . . 1 . . . . 1 1 Weapon 9 | . . . . . . . . . . . . . . 1 . . 3 1 . . . . . 1 . . . . . 3 Highest Loss Streak 2 | . . . . . . . . . . . . . 1 1 1 . 2 1 . . . . . 2 . . . . 1 1 To Critical Strikes . | . . . . . . . . . . . . . . . . . . . . . . . . . . . . . . . Average Slot Usage (%) 90 | . 89 100 99 100 86 100 99 98 100 100 100 100 99 99 98 93 93 93 94 94 94 94 96 99 88 89 86 87 75 72 Engine 3 | . 14 14 11 11 7 11 9 7 7 7 7 7 6 1 . . . 5 5 5 5 5 2 . . . . . . . Core 2 | . . . . . . . . . . . . . . 4 6 6 6 5 5 5 5 5 7 5 5 4 4 3 . . Reactor 2 | . . . . . . . . . . . . . . . . . . . . . . . . 5 5 7 8 7 7 7 Treads 22 | . . . 30 33 33 33 27 30 30 30 30 30 32 32 31 26 26 22 23 23 23 23 28 30 20 18 19 19 10 15 Flight 2 | . . . . . . . . . . . . . . . . . . . . . . . . . . . . . 11 . Device 14 | . 3 14 13 11 11 11 15 13 15 15 15 15 13 13 13 13 13 17 17 17 17 17 15 19 19 13 12 18 13 13 Storage 6 | . 14 14 11 11 8 11 9 7 7 7 7 7 6 6 6 6 6 5 5 5 5 5 5 5 5 4 4 3 5 3 Processor 12 | . . . 2 11 11 11 11 15 15 15 15 15 13 13 13 13 13 11 11 11 11 11 10 10 10 13 12 11 14 16 Energy Gun 6 | . 14 14 11 10 5 10 17 15 11 7 7 7 8 17 20 20 20 14 11 11 6 1 . . . . . . . . Ballistic Gun 11 | . 14 14 11 11 7 11 9 7 10 14 15 15 17 8 6 6 6 6 10 11 15 20 21 20 19 21 19 18 5 4 Naked Turns . | . . . . . . . . . . . . . . . . . . . . . . . . . . . . . . . Heaviest Build 241 | 13 22 18 35 33 32 33 45 42 49 42 42 102 109 106 117 117 112 134 134 134 145 136 153 164 177 183 177 181 212 241 Greatest Support 305 | 20 20 20 63 63 63 63 63 86 86 86 86 86 106 116 156 159 161 158 146 146 154 154 184 213 213 212 292 277 305 305 Greatest Overweight (x) 37 | . 1 . 1 . . . . . . . . 1 1 1 1 37 . . . . . . 1 . . . . . 2 . Average Overweight (x) . | . . . . . . . . . . . . . . . . 12 . . . . . . . . . . . . . . Largest Inventory Capacity 25 | 8 10 10 15 15 15 15 15 15 15 15 15 25 25 25 25 25 25 25 25 25 25 25 25 25 25 25 25 25 25 25 Average Capacity 21 | 8 9 10 14 15 12 15 15 15 15 15 15 23 25 25 25 25 25 25 25 25 25 25 25 25 25 25 25 25 19 25 Most Carried 25 | 8 10 10 15 15 15 15 15 15 15 15 15 16 25 25 25 25 25 25 25 25 25 25 25 25 25 25 25 25 25 25 Average Carried 20 | 6 9 10 14 15 11 15 14 14 15 15 15 15 22 24 24 25 24 24 25 24 24 25 24 24 24 24 24 23 16 22 Final Capacity 25 | 8 10 10 15 15 15 15 15 15 15 15 15 25 25 25 25 25 25 25 25 25 25 25 25 25 25 25 25 25 25 25 Final Carried 25 | 8 10 10 15 15 15 15 15 15 15 15 15 16 25 25 25 25 24 25 25 24 25 25 25 24 25 25 24 25 25 21 Class Distribution -------------------- 44% | Scavenger-Gunner 14% | Scavenger-Mutant 9% | Gunner 9% | Mutant 8% | Scavenger-Sprinter 7% | Generator-Gunner 3% | Commander-Gunner Dominant Class ---------------- Mutant | -10/Materials Mutant | -10/Mines Scavenger-Mutant | -9/Materials Mutant | -9/Mines Mutant | -9/Exiles Mutant | -8/Mines Skirmisher | -8/Materials Gunner | -7/Factory Gunner | -7/Lower Caves Gunner | -7/Lower Caves Gunner | -7/Data Miner Gunner | -6/Proximity Caves Scavenger-Gunner | -6/Factory Commander-Gunner | -6/Extension Scavenger-Gunner | -6/Cetus Scavenger-Gunner | -6/Archives Scavenger-Gunner | -6/Hub_04(d) Scavenger-Gunner | -5/Factory Scavenger-Gunner | -5/Upper Caves Scavenger-Gunner | -5/Upper Caves Scavenger-Gunner | -5/Warlord Scavenger-Gunner | -4/Proximity Caves Scavenger-Gunner | -4/Factory Scavenger-Gunner | -4/Armory Scavenger-Mutant | -4/Lab Generator-Gunner | -3/Research Scavenger-Gunner | -2/Research Scavenger-Gunner | -1/Access Scavenger-Sprinter | -1/Command Generator-Mutant | -1/Access_0 Resources | -11 -10 -10 -9 -9 -9 -8 -8 -7 -7 -7 -7 -6 -6 -6 -6 -6 -6 -5 -5 -5 -5 -4 -4 -4 -4 -3 -2 -1 -1 -1 ----------- Run | Scr Mat Min Mat Min Exi Min Mat Fac Low Low Dat Pro Fac Ext Cet Arc Hub Fac Upp Upp War Pro Fac Arm Lab Res Res Acc Com Ac0 Matter Collected 14724 | 200 38 . 266 91 . 162 213 113 150 164 . 72 221 140 97 78 288 800 230 193 380 58 643 2132 89 430 862 1981 4127 506 Remotely 3342 | . . . . . . . . . . . . . . . . . . . . . . . . 1175 . . 328 828 1011 . Salvage Created 18816 | 82 268 . 592 166 . 98 711 354 333 359 . 188 304 144 80 128 897 1562 381 53 567 37 836 2817 89 669 602 2494 3552 453 Parts 905 | 4 13 . 39 8 . 6 44 25 12 20 . 4 15 5 5 4 46 75 8 3 26 4 40 128 11 22 35 98 184 21 Haulers Intercepted 13 | . 1 . 2 . . . 4 1 . . . . 1 . . . . 1 . . . . 1 . . . . 2 . . Recyclers Shooed 8 | . 1 . 1 . . 1 1 . . . . . . 1 . . . 1 . . . . . . . . . 1 1 . Parts Field Recycled 39 | . . . . . . . . . . . . . . . . . . . 1 . 3 . 8 4 7 14 . . 2 . Retrieved Matter 804 | . . . . . . . . . . . . . . . . . . . 4 . 107 . 116 93 194 268 . . 22 . Parts Self-Destructed 182 | . . . . . . . . . 12 32 . 19 . . . . . . 9 9 92 9 . . . . . . . . Prevented 16 | . . . . . . . . . . . . . . . . . . . 2 1 13 . . . . . . . . . Kills | -11 -10 -10 -9 -9 -9 -8 -8 -7 -7 -7 -7 -6 -6 -6 -6 -6 -6 -5 -5 -5 -5 -4 -4 -4 -4 -3 -2 -1 -1 -1 ------- Run | Scr Mat Min Mat Min Exi Min Mat Fac Low Low Dat Pro Fac Ext Cet Arc Hub Fac Upp Upp War Pro Fac Arm Lab Res Res Acc Com Ac0 Combat Hostiles Destroyed 315 | . 4 . 9 15 . 2 9 6 12 11 . 3 4 2 4 2 14 35 10 1 11 3 12 59 1 5 8 31 33 9 Guns 218 | . 4 . 7 4 . 1 9 6 1 5 . 1 4 1 4 2 14 23 5 1 10 . 12 38 1 5 8 22 26 4 Cannons 6 | . . . . . . . . . . . . . . . . . . . . . . . . 3 . . . . 1 2 AOE 87 | . . . 2 11 . 1 . . 11 6 . 2 . . . . . 11 5 . . 3 . 18 . . . 9 6 2 Classes Destroyed 25 | 1 3 . 4 4 . . 1 . 1 1 . . 1 . . . 4 . . . 1 . . 3 . 1 . . . . Worker 16 | . . . . . . . . . . . . . . . . . 1 3 . . . . . . . . 1 5 6 . Builder 15 | . . . 2 1 . . 1 . . . . . 1 1 . . 3 . . . . . . . . . . 6 . . Tunneler 2 | . . . . 1 . . . . . . . . . . . . . . . . . . 1 . . . . . . . Hauler 13 | . 1 . 2 . . . 4 1 . . . . 1 . . . . 1 . . . . 1 . . . . 2 . . Recycler 7 | 1 . . . . . . 1 . . . . . . . . . . . . . . . . . . 2 . . 3 . Mechanic 2 | . . . 1 . . . . . . . . . . . . . . 1 . . . . . . . . . . . . Operator 6 | . . . 1 . . . . . . . . . . 1 . . 1 . . . . . 1 . . 1 1 . . . Watcher 11 | . 1 . 1 . . . 1 . . . . . . . . . . 1 . . . . . 2 . . . 3 2 . Swarmer 51 | . . . . 3 . . 3 . 3 4 . 2 . . 4 . . 8 3 . 5 3 1 7 . . 1 3 1 . Saboteur 5 | . . . . . . . . . . . . . . . . . . . . . . . . 5 . . . . . . Grunt 110 | . 4 . 7 . . 2 3 5 7 4 . 1 2 . . . 7 15 5 1 2 . 3 18 . 1 2 12 9 . Brawler 10 | . . . . . . . . . . 2 . . . . . . . 1 2 . 2 . . 1 . . . 2 . . Duelist 14 | . . . . . . . 1 . . 1 . . . . . . . . . . . . . 10 . . . 1 1 . Protector 5 | . . . . . . . . . . . . . . . . . . . . . . . . 2 . . . . 3 . Sentry 21 | . . . 2 . . . 2 . 1 . . . 1 2 . 2 . 1 . . . . 3 4 . 1 . . 2 . Demolisher 2 | . . . . 1 . . . 1 . . . . . . . . . . . . . . . . . . . . . . Specialist 7 | . . . . . . . . . . . . . . . . . 1 . . . . . . 4 . . . . 2 . Hunter 23 | . . . . . . . . . . . . . . . . . . 1 . . . . . 4 . . 1 8 9 . Programmer 27 | . . . . . . . . . . . . . 1 . . . 2 8 . . 1 . 4 3 . . 2 3 3 . Heavy 1 | . . . . . . . . . . . . . . . . . . . . . . . . 1 . . . . . . Behemoth 6 | . . . . . . . . . . . . . . . . . 1 1 . . . . 1 . . . 1 1 1 . M Guard 1 | . . . . . . . . . . . . . . . . . . . . . . . . . . . . . 1 . Enhanced Grunt 4 | . . . . . . . . . . . . . . . . . . . . . . . . . . . . . . 4 Enhanced Hunter 4 | . . . . . . . . . . . . . . . . . . . . . . . . . . . . . . 4 Lightning 3 | . . . . . . . . . . . . . . . . . 3 . . . . . . . . . . . . . Tracker 2 | . . . . . . . . . . . . . . . . . . . . . . . . . . . 1 1 . . Striker 1 | . . . . . . . . . . . . . . . . . . . . . . . . . . 1 . . . . Executioner 3 | . . . . . . . . . . . . . . . . . . . . . 1 . . . . 2 . . . . Assembled 11 | . . . . 11 . . . . . . . . . . . . . . . . . . . . . . . . . . Wizard 1 | . . . . . . . . . . . . . . . . . . . . . . . . . . . . . 1 . Mutant 1 | . . . . . . . . . 1 . . . . . . . . . . . . . . . . . . . . . Best Kill Streak 14 | 1 2 . 2 13 . 1 7 4 9 7 . 2 2 2 3 2 4 14 4 1 4 3 6 14 1 2 5 9 8 3 Combat Bots Only 14 | . 2 . 2 12 . 1 3 4 9 7 . 2 1 1 3 2 3 11 4 1 4 3 6 14 1 2 3 6 8 3 Max Kills in Single Turn 6 | 1 2 . 2 4 . 1 2 2 6 6 . 2 1 1 2 1 2 3 2 1 2 3 2 3 1 2 3 3 3 1 Gunslinging 1 | . 1 . . . . . . 1 . . . . . . . . . 1 . . 1 . 1 1 . . 1 1 1 . Exploded 6 | . . . 2 4 . 1 . . 6 6 . 2 . . . . . 3 2 . . 3 . 3 . . . 3 3 1 Melee . | . . . . . . . . . . . . . . . . . . . . . . . . . . . . . . . Uniques/NPCs Destroyed 5 | . . . . . . . . . . . . . . . . . . . . . . . . . 1 . . . 2 2 A5 (-4/Lab) MAIN.C Shell (-1/Command) MAIN.C (-1/Command) A8 (-1/Access_0) A6 (-1/Access_0) Combat | -11 -10 -10 -9 -9 -9 -8 -8 -7 -7 -7 -7 -6 -6 -6 -6 -6 -6 -5 -5 -5 -5 -4 -4 -4 -4 -3 -2 -1 -1 -1 -------- Run | Scr Mat Min Mat Min Exi Min Mat Fac Low Low Dat Pro Fac Ext Cet Arc Hub Fac Upp Upp War Pro Fac Arm Lab Res Res Acc Com Ac0 Damage Taken 13664 | . 144 . 461 175 . . 157 89 160 143 . 202 130 415 432 39 1070 919 105 92 334 224 406 916 . 146 304 882 1922 3797 Core 1140 | . 75 . 33 38 . . 46 6 28 . . 12 . 38 . . 41 45 . . . 59 58 82 . 17 . 17 95 450 Absorbed by Shields 7038 | . . . . . . . 16 . . . . . 7 . 21 13 . . . . . . . 915 . 149 316 846 1135 3620 Reduced by Siege Mode 270 | . . . . . . . . . . . . . . . . . 26 . . . . . 18 . . . 13 99 114 . Redirected to Shielding 104 | . . . . . . . . . . . . . . . . . . . . . . . 54 50 . . . . . . Regen/Repaired (Parts) 299 | . . . 64 . . . . . . . . . . . . . . 235 . . . . . . . . . . . . Core Remaining (%) 70 | 100 . 20 . . . 71 82 . . . . 83 . . . . 60 . . . . 58 . . 42 96 92 . . . Volleys Fired 854 | 2 20 . 42 13 . 5 24 10 7 14 . 5 11 7 9 6 68 50 11 7 19 7 45 107 11 19 27 73 154 81 Largest 5 | 2 2 . 2 2 . 2 3 3 3 3 . 3 4 4 4 4 4 4 4 4 4 4 4 4 4 5 5 5 5 4 Hottest 350 | 80 60 . 79 79 . 79 135 135 135 104 . 104 182 217 241 241 236 234 213 213 227 190 147 149 146 179 179 179 200 350 Shots Fired 2511 | 4 40 . 80 22 . 8 72 30 15 36 . 13 44 28 34 21 185 164 34 27 64 22 114 358 29 68 108 299 433 159 Gun 2272 | 4 40 . 79 18 . 6 72 30 10 34 . 12 44 28 34 21 185 153 28 27 62 20 114 347 29 67 108 292 359 49 Cannon 132 | . . . . . . . . . . . . . . . . . . 2 . . 2 . . . . . . 2 16 110 Launcher 35 | . . . 1 4 . 2 . . 5 2 . 1 . . . . . 9 6 . . 2 . 1 . 1 . . 1 . Special 72 | . . . . . . . . . . . . . . . . . . . . . . . . 10 . . . 5 57 . Kinetic 1847 | . 20 . 41 9 . 3 24 10 4 26 . 8 29 9 9 6 68 55 14 13 45 15 114 347 29 67 108 292 360 122 Thermal 607 | 2 20 . 38 9 . 3 48 20 6 8 . 4 15 19 25 15 117 100 14 14 19 5 . . . . . 2 67 37 Explosive 55 | . . . 1 4 . 2 . . 5 2 . 1 . . . . . 9 6 . . 2 . 11 . 1 . 5 6 . Electromagnetic 2 | 2 . . . . . . . . . . . . . . . . . . . . . . . . . . . . . . Robot Hit Streak 39 | 2 8 . 11 3 . 3 17 21 17 6 . 5 8 10 11 11 15 12 6 6 10 10 17 14 10 11 11 25 39 38 Robot Miss Streak 11 | 1 2 . 5 3 . 2 2 1 1 2 . 1 5 1 6 1 5 5 4 11 5 3 5 3 1 2 4 4 5 5 Penetration Max 2 | . . . . . . . . . . . . . . . 1 . . 1 1 . 1 . 1 2 . 2 1 2 2 . Secondary Targets 50 | . 1 . 1 . . 1 2 1 . . . . . 3 . . 7 8 1 . 4 . 2 7 . . 2 3 6 1 Max Gunslinging Chain 2 | . 1 . 1 . . 1 1 1 . . . . . 1 . . 1 2 1 . 2 . 1 1 . . 1 1 1 1 Shots Hit Robots 1574 | 3 28 . 52 8 4 4 44 25 10 23 . 7 27 24 20 16 111 102 22 16 44 15 47 220 19 29 52 187 306 109 Core Hits 1108 | 1 18 . 26 33 . 5 23 15 27 21 . 7 24 12 13 5 62 124 29 9 20 12 25 144 7 24 27 110 187 98 Critical Kills 21 | . . . . . . . . . . 1 . . . . . 1 . 2 1 . 2 . . 3 . . . 2 6 3 Critical Parts Destroyed 26 | . . . . . . . . . . . . . . . . . . 1 . 1 3 1 . 5 . 2 1 3 5 4 Critical Strikes 92 | . . . 1 . . . 4 3 . 1 . . . 2 3 2 9 8 1 1 9 1 . 9 1 2 1 10 13 11 Burn 32 | . . . 1 . . . 4 3 . . . . . 2 3 1 9 5 . . 4 . . . . . . . . . Meltdown 1 | . . . . . . . . . . . . . . . . . . . . . . . . . . . . . . 1 Destroy 54 | . . . . . . . . . . 1 . . . . . 1 . 3 1 1 5 1 . 8 1 2 1 7 12 10 Sever 4 | . . . . . . . . . . . . . . . . . . . . . . . . 1 . . . 3 . . Impale 1 | . . . . . . . . . . . . . . . . . . . . . . . . . . . . . 1 . Melee Attacks 10 | . . . . . 5 . . . . . . . . . . . . . . . . . . . . . . . 5 . Impact . | . . . . . . . . . . . . . . . . . . . . . . . . . . . . . . . Slashing . | . . . . . . . . . . . . . . . . . . . . . . . . . . . . . . . Piercing 5 | . . . . . . . . . . . . . . . . . . . . . . . . . . . . . 5 . Sneak Attacks 4 | . . . . . 4 . . . . . . . . . . . . . . . . . . . . . . . . . Combat Hostiles . | . . . . . . . . . . . . . . . . . . . . . . . . . . . . . . . Follow-up Attacks . | . . . . . . . . . . . . . . . . . . . . . . . . . . . . . . . Damage Inflicted 59928 | 71 300 . 951 777 . 191 783 416 1397 1086 . 233 540 552 531 343 2372 3678 1145 274 1003 551 1833 10725 374 1132 1508 7758 11487 7917 Guns 37830 | 25 282 . 757 148 . 78 782 416 116 399 . 127 540 495 531 343 2358 2245 353 264 1003 418 1786 6375 374 1041 1508 5325 8420 1321 Cannons 4188 | . . . . . . . . . . . . . . . . . . . . . . . . . . . . . . 4188 Explosions 14952 | 46 . . 160 609 . 106 . . 1263 671 . 82 . . . . . 1431 782 . . 133 . 3935 . 14 . 2150 1162 2408 Melee 500 | . . . . . . . . . . . . . . . . . . . . . . . . . . . . . 500 . Ramming 700 | . 18 . 34 20 . 7 1 . 18 16 . 24 . 57 . . 14 2 10 10 . . 47 . . 77 . 55 290 . Kinetic 32987 | . 146 . 372 97 . 45 263 108 31 314 . 73 320 164 167 93 594 780 131 105 673 321 1786 6375 374 1041 1508 5325 8420 3361 Thermal 12641 | 46 136 . 385 51 . 33 519 308 313 85 . 54 220 331 364 250 1764 1465 222 159 330 97 . . . . . . 953 4556 Explosive 12270 | . . . 160 609 . 106 . . 1035 671 . 82 . . . . . 1431 782 . . 133 . 3935 . 14 . 2150 1162 . Electromagnetic 25 | 25 . . . . . . . . . . . . . . . . . . . . . . . . . . . . . . Impact . | . . . . . . . . . . . . . . . . . . . . . . . . . . . . . . . Slashing 805 | . . . . . . . . . . . . . . . . . . . . . . . . 415 . . . 228 162 . Piercing 500 | . . . . . . . . . . . . . . . . . . . . . . . . . . . . . 500 . Highest Corruption 7 | . . . . . . . . . . . . . . . . . 4 7 7 7 7 . . . . . . 1 4 . Average Corruption 4 | . . . . . . . . . . . . . . . . . 2 5 7 7 7 . . . . . . 1 3 . Corruption Purged 5 | . . . . . . . . . . . . . . . . . . . . . . . . . . . . 1 4 . Corruption Blocked 54 | . . . . . . . . . . . . . . . . . . . . . . . . . . . 9 . 45 . Effects 112 | . . . . . . . . . . . . . . . . . . 18 16 22 2 . . . . . . 6 48 . Message Errors 29 | . . . . . . . . . . . . . . . . . . 3 4 4 1 . . . . . . 1 16 . Matter Fused 28 | . . . . . . . . . . . . . . . . . . 6 5 5 . . . . . . . 1 11 . Heat Flow Errors 13 | . . . . . . . . . . . . . . . . . . 3 3 . . . . . . . . . 7 . Energy Discharges 16 | . . . . . . . . . . . . . . . . . . 2 3 6 1 . . . . . . 2 2 . Parts Rejected 1 | . . . . . . . . . . . . . . . . . . 1 . . . . . . . . . . . . Data Loss (minor) 12 | . . . . . . . . . . . . . . . . . . 3 . 3 . . . . . . . . 6 . Data Loss (major) 5 | . . . . . . . . . . . . . . . . . . . . 1 . . . . . . . . 4 . Misfires 3 | . . . . . . . . . . . . . . . . . . . . 1 . . . . . . . 1 1 . Alerts 1 | . . . . . . . . . . . . . . . . . . . 1 . . . . . . . . . . . Weapon Failures 4 | . . . . . . . . . . . . . . . . . . . . 2 . . . . . . . 1 1 . Overload Shots . | . . . . . . . . . . . . . . . . . . . . . . . . . . . . . . . Overflow Damage 634 | . . . . . . . . . 47 21 . . . 15 . . 8 27 8 . . . . 125 . 38 . 76 87 182 Projectiles 172 | . . . . . . . . . . . . . . . . . . . . . . . . 45 . . . 37 . 90 Explosions 357 | . . . . . . . . . 47 21 . . . . . . . 27 4 . . . . 80 . . . 39 47 92 Melee 105 | . . . . . . . . . . . . . . 15 . . 8 . 4 . . . . . . 38 . . 40 . Knockbacks 16 | . . . . . . . . . 1 . . . . . . . . . . . . . . . . 1 . . 3 11 Impact 5 | . . . . . . . . . 1 . . . . . . . . . . . . . . . . 1 . . 3 . Kinetic 11 | . . . . . . . . . . . . . . . . . . . . . . . . . . . . . . 11 Secondary . | . . . . . . . . . . . . . . . . . . . . . . . . . . . . . . . Self-Inflicted Damage . | . . . . . . . . . . . . . . . . . . . . . . . . . . . . . . . Shots . | . . . . . . . . . . . . . . . . . . . . . . . . . . . . . . . Rammed 61 | . . . 7 3 . 3 2 . 1 4 . 4 . 5 . . . 1 . 1 . . 3 . . 3 . 3 21 . Targets Rammed 92 | . 7 . 7 4 . 3 2 . 1 4 . 6 . 6 . . 1 1 1 1 . . 4 . . 3 . 3 38 . Kicked 23 | . 7 . . . . . . . . . . . . . . . . . . . . . . . . . . . 16 . Crushed 8 | . . . . 1 . . . . . . . 2 . 1 . . 1 . 1 . . . 1 . . . . . 1 . Highest Temperature 302 | 36 44 . 37 3 . . 39 14 8 24 . 12 102 96 168 192 222 232 231 79 124 57 174 302 111 78 60 37 199 24 Average Temperature 58 | 20 17 . 11 3 . . 15 8 7 11 . 9 52 29 79 97 52 69 107 43 47 38 61 94 57 33 25 37 59 18 Received Heat Transfer 1301 | . 81 . 180 20 . . 30 36 74 18 . 27 45 96 27 6 135 84 36 18 48 36 48 114 . 4 32 22 80 4 Effects 3 | . . . . . . . . . . . . . . . . . . 1 . . . . . 2 . . . . . . Energy Bleed 3 | . . . . . . . . . . . . . . . . . . 1 . . . . . 2 . . . . . . Siege Activations 11 | . . . . . . . . . . . . . . . . . 1 . . . . . 1 . 1 . 1 3 3 1 Total Turns 242 | . . . . . . . . . . . . . . . . . 21 . . . . . 16 . 15 . 11 65 112 2 Longest Duration 61 | . . . . . . . . . . . . . . . . . 21 . . . . . 16 . 15 . 11 48 61 2 Robots Corrupted . | . . . . . . . . . . . . . . . . . . . . . . . . . . . . . . . Combat Hostiles . | . . . . . . . . . . . . . . . . . . . . . . . . . . . . . . . Parts Fried 2 | . . . . . . . . . . . . . . . . . 2 . . . . . . . . . . . . . Impact Corruptions 7 | . . . . . . . . . . . . . . 1 . . 1 . 1 . . . . . . 1 . . 3 . Robots Melted 4 | . . . . . . . . . . . . . . 1 . . . 1 . . 1 . . . . . . . . 1 Combat Hostiles 4 | . . . . . . . . . . . . . . 1 . . . 1 . . 1 . . . . . . . . 1 Parts Melted 35 | . . . . . . . 2 1 . . . 1 . 5 . 1 6 7 1 . 7 . . 1 . 1 . 1 1 . Heat Transferred 19544 | 50 300 . 962 111 . 74 1406 888 425 129 . 111 414 894 1018 557 4454 3473 370 259 872 148 . . . . . . 1140 1489 Parts Sabotaged . | . . . . . . . . . . . . . . . . . . . . . . . . . . . . . . . Parts Stolen . | . . . . . . . . . . . . . . . . . . . . . . . . . . . . . . . Parts Stripped . | . . . . . . . . . . . . . . . . . . . . . . . . . . . . . . . Power Chain Reactions 1 | 1 . . . . . . . . . . . . . . . . . . . . . . . . . . . . . . Missiles Intercepted 1 | . . . . . . . . . . . . . . . . . . . . . . . . . . . . . 1 . Alert | -11 -10 -10 -9 -9 -9 -8 -8 -7 -7 -7 -7 -6 -6 -6 -6 -6 -6 -5 -5 -5 -5 -4 -4 -4 -4 -3 -2 -1 -1 -1 ------- Run | Scr Mat Min Mat Min Exi Min Mat Fac Low Low Dat Pro Fac Ext Cet Arc Hub Fac Upp Upp War Pro Fac Arm Lab Res Res Acc Com Ac0 Peak Influence 2226 | 5 439 116 797 484 . 250 608 365 . . . . 130 428 382 238 564 1656 . . . . 1035 2226 . 214 497 1694 1509 . Initial 584 | . 3 116 44 310 . . 56 89 . . . . . . 41 83 . 270 . . . . . 506 . . 120 208 584 . Average 449 | 4 235 116 596 419 . 112 314 207 . . . . 72 108 212 62 201 835 . . . . 629 1134 . 39 366 1040 1149 . Maximum Alert Level 5 | . 2 . 3 2 . 1 2 1 . . . . . 2 1 1 2 5 . . . . 3 5 . 1 2 5 5 . Low Security (%) 27 | 100 34 100 9 . . 79 35 41 . . . . 100 74 41 78 45 . . . . . 12 . . 96 3 . . . Level 1 15 | . 59 . 1 25 . 20 37 58 . . . . . 25 58 21 52 45 . . . . . . . 3 61 9 . . Level 2 12 | . 5 . 61 74 . . 26 . . . . . . . . . 2 9 . . . . 39 31 . . 35 2 . . Level 3 8 | . . . 27 . . . . . . . . . . . . . . 8 . . . . 46 14 . . . 49 4 . Level 4 6 | . . . . . . . . . . . . . . . . . . 12 . . . . . 34 . . . 26 9 . Level 5 28 | . . . . . . . . . . . . . . . . . . 24 . . . . . 5 . . . 11 85 . High Security . | . . . . . . . . . . . . . . . . . . . . . . . . 14 . . . . . . Max Security . | . . . . . . . . . . . . . . . . . . . . . . . . . . . . . . . Squads Dispatched 95 | . 3 . 3 . . . 2 2 . 1 . . 3 . . . 11 14 . . . . 5 11 . 5 6 17 12 . Investigation 8 | . 1 . 2 . . . . 1 . . . . 1 . . . . 1 . . . . . . . 1 . . 1 . Extermination 13 | . . . . . . . . . . . . . 2 . . . 2 2 . . . . 2 1 . . . 2 2 . Reinforcement 34 | . 2 . 1 . . . 2 . . . . . . . . . 5 2 . . . . 1 3 . 3 2 7 6 . Assault 24 | . . . . . . . . . . 1 . . . . . . . 6 . . . . 2 7 . . . 5 3 . Garrison 8 | . . . . . . . . 1 . . . . . . . . 4 3 . . . . . . . . . . . . Intercept 8 | . . . . . . . . . . . . . . . . . . . . . . . . . . 1 4 3 . . Searches Triggered . | . . . . . . . . . . . . . . . . . . . . . . . . . . . . . . . Data Miner Redirects 11 | . . . . . . . . . . . . . . . . . . 3 . . . . 1 3 . . . 2 2 . Construction Impeded 5 | . . . . . . . . . . . . . . . . . 1 1 . . . . 1 . . . . 2 . . Haulers Reinforced 2 | . . . . . . . . . . . . . . . . . . . . . . . . . . 1 . 1 . . Active Scanning Responses . | . . . . . . . . . . . . . . . . . . . . . . . . . . . . . . . Cargo Convoy Interrupts . | . . . . . . . . . . . . . . . . . . . . . . . . . . . . . . . Stealth | -11 -10 -10 -9 -9 -9 -8 -8 -7 -7 -7 -7 -6 -6 -6 -6 -6 -6 -5 -5 -5 -5 -4 -4 -4 -4 -3 -2 -1 -1 -1 --------- Run | Scr Mat Min Mat Min Exi Min Mat Fac Low Low Dat Pro Fac Ext Cet Arc Hub Fac Upp Upp War Pro Fac Arm Lab Res Res Acc Com Ac0 Distress Signals 56 | . 1 . 4 . . . 2 . . . . . . 2 2 . 2 2 . . . . 1 1 . 5 4 4 26 . Communications Jammed 198 | . . . . . . . . . . . . . 1 2 . . 2 . . . . . 1 88 . . 7 40 57 . Distress Signals 193 | . . . . . . . . . . . . . 1 2 . . 2 . . . . . 1 88 . . 7 35 57 . Times Spotted 594 | . 13 . 43 23 . 7 22 8 14 18 . 11 10 12 15 4 36 47 13 8 34 7 17 58 1 12 17 51 56 37 Peak Tracking Total 16 | . 4 . 6 16 . 2 5 4 8 8 . 4 3 3 5 2 8 7 5 5 13 5 5 7 1 3 5 7 10 4 Tactical Retreats 11 | . . . . . . . 1 . . . . 1 . . 1 . . 1 1 2 1 . . . . . . 1 2 . Traps | -11 -10 -10 -9 -9 -9 -8 -8 -7 -7 -7 -7 -6 -6 -6 -6 -6 -6 -5 -5 -5 -5 -4 -4 -4 -4 -3 -2 -1 -1 -1 ------- Run | Scr Mat Min Mat Min Exi Min Mat Fac Low Low Dat Pro Fac Ext Cet Arc Hub Fac Upp Upp War Pro Fac Arm Lab Res Res Acc Com Ac0 Traps Triggered 15 | . . . 2 . . . 2 . . . . . . 2 . . . 2 . . . . . . . . . 1 6 . Indirectly . | . . . . . . . . . . . . . . . . . . . . . . . . . . . . . . . Trap Hack Attempts . | . . . . . . . . . . . . . . . . . . . . . . . . . . . . . . . Triggered . | . . . . . . . . . . . . . . . . . . . . . . . . . . . . . . . Disarmed . | . . . . . . . . . . . . . . . . . . . . . . . . . . . . . . . Reprogrammed . | . . . . . . . . . . . . . . . . . . . . . . . . . . . . . . . Reused . | . . . . . . . . . . . . . . . . . . . . . . . . . . . . . . . Traps Extracted . | . . . . . . . . . . . . . . . . . . . . . . . . . . . . . . . Installed . | . . . . . . . . . . . . . . . . . . . . . . . . . . . . . . . Triggered 11 | . . . . . . . . . . 1 . 2 . . . . 1 . . . 7 . . . . . . . . . Machines | -11 -10 -10 -9 -9 -9 -8 -8 -7 -7 -7 -7 -6 -6 -6 -6 -6 -6 -5 -5 -5 -5 -4 -4 -4 -4 -3 -2 -1 -1 -1 ---------- Run | Scr Mat Min Mat Min Exi Min Mat Fac Low Low Dat Pro Fac Ext Cet Arc Hub Fac Upp Upp War Pro Fac Arm Lab Res Res Acc Com Ac0 Machines Disabled 86 | . . . 1 . . 3 2 . 6 1 . . 2 . . 2 6 5 . . 1 . 25 6 2 2 5 5 8 4 Max in Single Turn 3 | . . . . . . 2 . . 3 . . . . . . 1 . 2 . . . . 1 1 1 . 1 1 2 1 Garrison Access 7 | . . . . . . . . 1 . . . . . . . . . 1 . . . . . . . 2 2 1 . . Phase Generator 1 | . . . . . . . . . . . . . . . . . . . . . . . . . . . . . 1 . Network Hub 2 | . . . . . . . . . . . . . . . . . 2 . . . . . . . . . . . . . Machines Sabotaged . | . . . . . . . . . . . . . . . . . . . . . . . . . . . . . . . Garrisons Compromised . | . . . . . . . . . . . . . . . . . . . . . . . . . . . . . . . Overloaded Fab Kills . | . . . . . . . . . . . . . . . . . . . . . . . . . . . . . . . Hacking | -11 -10 -10 -9 -9 -9 -8 -8 -7 -7 -7 -7 -6 -6 -6 -6 -6 -6 -5 -5 -5 -5 -4 -4 -4 -4 -3 -2 -1 -1 -1 --------- Run | Scr Mat Min Mat Min Exi Min Mat Fac Low Low Dat Pro Fac Ext Cet Arc Hub Fac Upp Upp War Pro Fac Arm Lab Res Res Acc Com Ac0 Machines Accessed 71 | . 2 . 7 . 2 . 5 3 1 . 2 1 5 7 . . 4 5 . 1 2 . 3 3 . 7 1 6 4 . Terminals 53 | . 1 . 5 . . . 5 2 1 . . 1 4 7 . . 4 4 . . . . 2 3 . 4 . 6 4 . Fabricators 3 | . . . . . . . . . . . . . 1 . . . . . . . . . 1 . . 1 . . . . Repair Stations 2 | . . . 1 . . . . . . . . . . . . . . 1 . . . . . . . . . . . . Recycling Units 2 | . 1 . 1 . . . . . . . . . . . . . . . . . . . . . . . . . . . Scanalyzers 1 | . . . . . . . . . . . . . . . . . . . . . . . . . . 1 . . . . Garrison Access 3 | . . . . . . . . 1 . . . . . . . . . . . . . . . . . 1 1 . . . Total Hacks 275 | . 6 . 17 . 2 . 18 9 8 . 18 1 14 20 . . 8 20 . 1 4 . 25 18 . 48 1 28 9 . Successful 144 | . 4 . 9 . 2 . 11 3 8 . 18 1 7 7 . . 5 7 . 1 4 . 11 5 . 26 1 10 4 . Failed 130 | . 2 . 7 . . . 7 6 . . . . 7 13 . . 3 13 . . . . 14 13 . 22 . 18 5 . Catastrophic 23 | . . . . . . . 1 2 . . . . . 3 . . 1 4 . . . . 3 4 . 1 . 4 . . Database Lockouts 1 | . . . 1 . . . . . . . . . . . . . . . . . . . . . . . . . . . Manual 119 | . 6 . 9 . 1 . 14 6 . . . . 3 11 . . 3 3 . . 1 . 11 10 . 18 . 20 3 . Terminals 216 | . 5 . 14 . . . 18 6 8 . . 1 10 20 . . 8 17 . . . . 19 18 . 35 . 28 9 . Fabricators 19 | . . . . . . . . . . . . . 4 . . . . . . . . . 6 . . 9 . . . . Repair Stations 5 | . . . 2 . . . . . . . . . . . . . . 3 . . . . . . . . . . . . Recycling Units 2 | . 1 . 1 . . . . . . . . . . . . . . . . . . . . . . . . . . . Scanalyzers 2 | . . . . . . . . . . . . . . . . . . . . . . . . . . 2 . . . . Garrison Access 6 | . . . . . . . . 3 . . . . . . . . . . . . . . . . . 2 1 . . . Terminal Hacks 95 | . 1 . 5 . 2 . 8 1 8 . 18 1 2 6 . . 4 3 . 1 4 . 5 3 . 12 . 8 3 . Record 14 | . . . . . 1 . . . 8 . . 1 . . . . . . . . 4 . . . . . . . . . Part Schematic 9 | . . . . . . . . . . . 9 . . . . . . . . . . . . . . . . . . . Robot Schematic 6 | . . . . . . . . . . . 6 . . . . . . . . . . . . . . . . . . . Robot Analysis 5 | . 1 . 1 . . . 1 . . . . . . . . . . . . . . . . . . . . 2 . . Prototype ID Bank 9 | . . . 1 . . . 1 . . . 3 . . 1 . . . 1 . . . . . . . 2 . . . . Open Door 2 | . . . . . . . . . . . . . . . . . . . . 1 . . . . . . . . 1 . Level Access Points 3 | . . . . . . . . . . . . . 1 . . . . . . . . . 1 . . 1 . . . . Branch Access Points 3 | . . . . . . . . 1 . . . . . . . . . 1 . . . . . . . 1 . . . . Emergency Access Points 1 | . . . . . . . . . . . . . . . . . . . . . . . . . . 1 . . . . Terminal Index 5 | . . . 1 . . . . . . . . . 1 . . . 1 . . . . . . . . 1 . 1 . . Alert Level 5 | . . . . . . . 2 . . . . . . 1 . . . . . . . . 1 1 . . . . . . Unreport Threat 16 | . . . . . . . 2 . . . . . . 4 . . 3 . . . . . . 2 . . . 5 . . Locate Traps 3 | . . . . . . . 2 . . . . . . . . . . . . . . . . . . 1 . . . . Maintenance Status 2 | . . . . . . . . . . . . . . . . . . . . . . . 1 . . 1 . . . . Patrol Status 2 | . . . . . . . . . . . . . . . . . . . . . . . . . . 1 . . 1 . Recall Reinforcements 1 | . . . . . . . . . . . . . . . . . . . . . . . . . . 1 . . . . Hauler Manifests 2 | . . . 1 . . . . . . . . . . . . . . 1 . . . . . . . . . . . . Registered Components 1 | . . . 1 . . . . . . . . . . . . . . . . . . . . . . . . . . . Registered Prototypes 1 | . . . . . . . . . . . . . . . . . . . . . . . . . . 1 . . . . Zone Layout 3 | . . . . . . . . . . . . . . . . . . . . . . . 2 . . 1 . . . . EX-Prototype ID Bank 1 | . . . . . 1 . . . . . . . . . . . . . . . . . . . . . . . . . Disengage Seal 1 | . . . . . . . . . . . . . . . . . . . . . . . . . . . . . 1 . Fabricator Hacks 4 | . . . . . . . . . . . . . 2 . . . . . . . . . 1 . . 1 . . . . Load Schematic 1 | . . . . . . . . . . . . . 1 . . . . . . . . . . . . . . . . . Build 3 | . . . . . . . . . . . . . 1 . . . . . . . . . 1 . . 1 . . . . Repair Station Hacks 4 | . . . 2 . . . . . . . . . . . . . . 2 . . . . . . . . . . . . Scan Component 2 | . . . 1 . . . . . . . . . . . . . . 1 . . . . . . . . . . . . Repair 2 | . . . 1 . . . . . . . . . . . . . . 1 . . . . . . . . . . . . Recycling Unit Hacks . | . . . . . . . . . . . . . . . . . . . . . . . . . . . . . . . Scanalyzer 2 | . . . . . . . . . . . . . . . . . . . . . . . . . . 2 . . . . Insert Component 2 | . . . . . . . . . . . . . . . . . . . . . . . . . . 2 . . . . Garrison Access Hacks 3 | . . . . . . . . 1 . . . . . . . . . . . . . . . . . 1 1 . . . Seal Access 3 | . . . . . . . . 1 . . . . . . . . . . . . . . . . . 1 1 . . . Unauthorized Hacks 36 | . 3 . 2 . . . 3 1 . . . . 3 1 . . 1 2 . . . . 5 2 . 10 . 2 1 . Terminals 29 | . 2 . 1 . . . 3 1 . . . . 3 1 . . 1 2 . . . . 3 2 . 7 . 2 1 . Track 1 | . . . . . . . . . . . . . . . . . . . . . . . . . . 1 . . . . Botnet 19 | . 1 . 1 . . . 2 1 . . . . 2 1 . . 1 1 . . . . 2 1 . 3 . 2 1 . Disrupt 2 | . . . . . . . . . . . . . . . . . . . . . . . . 1 . 1 . . . . Operators 7 | . 1 . . . . . 1 . . . . . 1 . . . . 1 . . . . 1 . . 2 . . . . Fabricators 5 | . . . . . . . . . . . . . . . . . . . . . . . 2 . . 3 . . . . Prioritize 1 | . . . . . . . . . . . . . . . . . . . . . . . . . . 1 . . . . Fabnet 2 | . . . . . . . . . . . . . . . . . . . . . . . 1 . . 1 . . . . Haulers 2 | . . . . . . . . . . . . . . . . . . . . . . . 1 . . 1 . . . . Repair Stations . | . . . . . . . . . . . . . . . . . . . . . . . . . . . . . . . Recycling Units 2 | . 1 . 1 . . . . . . . . . . . . . . . . . . . . . . . . . . . Tunnel 2 | . 1 . 1 . . . . . . . . . . . . . . . . . . . . . . . . . . . Scanalyzers . | . . . . . . . . . . . . . . . . . . . . . . . . . . . . . . . Garrison Access . | . . . . . . . . . . . . . . . . . . . . . . . . . . . . . . . Data Cores Recovered 2 | . . . 1 . . . . . . . . . . . . . . . . . . . . . . 1 . . . . Used . | . . . . . . . . . . . . . . . . . . . . . . . . . . . . . . . Hacking Detections 53 | . 1 . 5 . . . 5 2 . . . . 5 7 . . 4 5 . . . . 3 3 . 4 . 6 3 . Full Trace Events 2 | . . . . . . . . 1 . . . . 1 . . . . . . . . . . . . . . . . . Feedback Events . | . . . . . . . . . . . . . . . . . . . . . . . . . . . . . . . Feedback Blocked . | . . . . . . . . . . . . . . . . . . . . . . . . . . . . . . . Robot Schematics Acquired 6 | . . . . . . . . . . . 6 . . . . . . . . . . . . . . . . . . . Robots Built 5 | . . . . . . . . . . . . . . . . . . . . . . . 1 . . 4 . . . . Authchips . | . . . . . . . . . . . . . . . . . . . . . . . . . . . . . . . Time 244 | . . . . . . . . . . . . . . . . . . . . . . . 40 . . 204 . . . . Total Robot Build Rating 33 | . . . . . . . . . . . . . . . . . . . . . . . 1 . . 32 . . . . Part Schematics Acquired 9 | . . . . . . . . . . . 9 . . . . . . . . . . . . . . . . . . . Parts Built 1 | . . . . . . . . . . . . . 1 . . . . . . . . . . . . . . . . . Authchips . | . . . . . . . . . . . . . . . . . . . . . . . . . . . . . . . Time 53 | . . . . . . . . . . . . . 53 . . . . . . . . . . . . . . . . . Total Part Build Rating 6 | . . . . . . . . . . . . . 6 . . . . . . . . . . . . . . . . . Parts Repaired 2 | . . . 1 . . . . . . . . . . . . . . 1 . . . . . . . . . . . . Time 64 | . . . 26 . . . . . . . . . . . . . . 38 . . . . . . . . . . . . Parts Recycled . | . . . . . . . . . . . . . . . . . . . . . . . . . . . . . . . Recycled Matter . | . . . . . . . . . . . . . . . . . . . . . . . . . . . . . . . Retrieved Matter . | . . . . . . . . . . . . . . . . . . . . . . . . . . . . . . . Retrieved Components . | . . . . . . . . . . . . . . . . . . . . . . . . . . . . . . . Parts Scanalyzed . | . . . . . . . . . . . . . . . . . . . . . . . . . . . . . . . Part Schematics Acquired . | . . . . . . . . . . . . . . . . . . . . . . . . . . . . . . . Parts Damaged . | . . . . . . . . . . . . . . . . . . . . . . . . . . . . . . . Bothacking | -11 -10 -10 -9 -9 -9 -8 -8 -7 -7 -7 -7 -6 -6 -6 -6 -6 -6 -5 -5 -5 -5 -4 -4 -4 -4 -3 -2 -1 -1 -1 ------------ Run | Scr Mat Min Mat Min Exi Min Mat Fac Low Low Dat Pro Fac Ext Cet Arc Hub Fac Upp Upp War Pro Fac Arm Lab Res Res Acc Com Ac0 Used RIF Installer . | . . . . . . . . . . . . . . . . . . . . . . . . . . . . . . . Robots Hacked 9 | . . . . . 4 . . . . . . . . . . . . . . . . . . . . 5 . . . . Non-combat 3 | . . . . . 3 . . . . . . . . . . . . . . . . . . . . . . . . . Combat 6 | . . . . . 1 . . . . . . . . . . . . . . . . . . . . 5 . . . . Robot Hacks Applied 4 | . . . . . 4 . . . . . . . . . . . . . . . . . . . . . . . . . parse_system 4 | . . . . . 4 . . . . . . . . . . . . . . . . . . . . . . . . . Relay Couplers Released 8 | . . . . . . . . . . . . . . . . . . 2 . . . . . . . 2 2 2 . . Machine Destruction 8 | . . . . . . . . . . . . . . . . . . 2 . . . . . . . 2 2 2 . . Fabnet Peak Effective % 3 | . . . . . . . . . . . . . . . . . . . . . . . . . . 3 1 . . . Autooverrided 5 | . . . . . . . . . . . . . . . . . . . . . . . . . . 5 . . . . Robots Rewired 16 | . . . . . . . . . . 1 . . . 11 . . . . . . 4 . . . . . . . . . Allies Hacked . | . . . . . . . . . . . . . . . . . . . . . . . . . . . . . . . Hacks Repelled . | . . . . . . . . . . . . . . . . . . . . . . . . . . . . . . . Allies | -11 -10 -10 -9 -9 -9 -8 -8 -7 -7 -7 -7 -6 -6 -6 -6 -6 -6 -5 -5 -5 -5 -4 -4 -4 -4 -3 -2 -1 -1 -1 -------- Run | Scr Mat Min Mat Min Exi Min Mat Fac Low Low Dat Pro Fac Ext Cet Arc Hub Fac Upp Upp War Pro Fac Arm Lab Res Res Acc Com Ac0 Total Allies 36 | . 1 2 . 3 . . . . . 1 . 1 . 14 . . . . . . 4 . 1 . . 9 . . . . Largest Group 12 | . 1 3 3 4 4 4 3 1 1 2 2 3 3 12 11 2 1 1 1 1 5 1 2 1 1 5 1 1 1 1 Highest-Rated Group 493 | . 58 104 112 115 115 115 113 90 90 122 122 218 230 493 441 170 135 138 133 130 327 148 179 199 203 336 239 255 294 294 Highest-Rated Ally 294 | . 58 58 75 75 75 75 84 90 90 90 90 96 112 118 131 133 135 138 133 130 148 148 174 199 203 223 239 255 294 294 Total Orders 5 | . . . . . 2 2 . . . . . . . . . . . . . . 1 . . . . . . . . . STAY 3 | . . . . . 1 1 . . . . . . . . . . . . . . 1 . . . . . . . . . FOLLOW 2 | . . . . . 1 1 . . . . . . . . . . . . . . . . . . . . . . . . Ally Attacks 936 | . 25 . 69 14 . 28 37 10 16 16 . 14 19 81 57 13 44 50 14 15 15 4 32 79 5 48 28 65 59 79 Total Damage 55617 | . 356 . 1707 443 . 472 1064 373 535 478 . 344 1130 2645 1567 551 2843 2515 994 701 3919 329 2498 2603 455 1645 2895 5894 7526 9135 Kills 319 | . 3 . 32 9 . 8 13 3 5 7 . 7 6 18 14 3 19 21 7 5 16 4 16 13 . 11 10 33 29 7 Allies Corrupted . | . . . . . . . . . . . . . . . . . . . . . . . . . . . . . . . Allies Melted 2 | . . . . . . . . . . . . . . . . . . . . . . . . . . . 2 . . . Intel | -11 -10 -10 -9 -9 -9 -8 -8 -7 -7 -7 -7 -6 -6 -6 -6 -6 -6 -5 -5 -5 -5 -4 -4 -4 -4 -3 -2 -1 -1 -1 ------- Run | Scr Mat Min Mat Min Exi Min Mat Fac Low Low Dat Pro Fac Ext Cet Arc Hub Fac Upp Upp War Pro Fac Arm Lab Res Res Acc Com Ac0 Robot Analysis Total 5 | . 1 . 1 . . . 1 . . . . . . . . . . . . . . . . . . . . 2 . . Derelict Logs Recovered 8 | . . . . 1 . . . . 1 1 . 1 . . . . . . 1 2 . 1 . . . . . . . . Drone Launches . | . . . . . . . . . . . . . . . . . . . . . . . . . . . . . . . Drone Recoveries . | . . . . . . . . . . . . . . . . . . . . . . . . . . . . . . . Exploration | -11 -10 -10 -9 -9 -9 -8 -8 -7 -7 -7 -7 -6 -6 -6 -6 -6 -6 -5 -5 -5 -5 -4 -4 -4 -4 -3 -2 -1 -1 -1 ------------- Run | Scr Mat Min Mat Min Exi Min Mat Fac Low Low Dat Pro Fac Ext Cet Arc Hub Fac Upp Upp War Pro Fac Arm Lab Res Res Acc Com Ac0 Turns Passed 40103 | 19 507 76 1985 955 879 634 957 571 1291 614 122 1516 1416 1501 456 1723 1000 1615 560 554 1403 1137 1149 1151 1865 1954 1186 1624 9085 598 Spaces Moved 23311 | 10 322 61 1086 566 751 371 344 315 782 349 77 502 445 768 193 148 313 825 318 319 704 362 536 431 823 586 622 551 9591 240 Core 419 | . . . . . 370 . . . . . . . . . . 49 . . . . . . . . . . . . . . Treads 15392 | . . . 966 566 381 371 344 315 782 349 77 502 445 768 193 99 313 825 318 319 704 362 536 431 823 586 622 551 2604 240 Legs 517 | 10 322 61 120 . . . . . . . . . . . . . . . . . . . . . . . . . 4 . Wheels . | . . . . . . . . . . . . . . . . . . . . . . . . . . . . . . . Hover . | . . . . . . . . . . . . . . . . . . . . . . . . . . . . . . . Flight 6983 | . . . . . . . . . . . . . . . . . . . . . . . . . . . . . 6983 . Fastest Speed 19 | 120 120 120 120 160 50 160 160 160 160 160 160 160 160 160 160 160 160 162 162 162 162 167 165 152 152 155 155 161 19 156 Average Speed 122 | 120 121 120 158 160 105 160 160 160 160 160 160 219 193 174 161 736 160 162 162 162 163 167 166 162 152 155 159 161 59 156 Slowest Speed 1900 | 120 190 120 190 160 160 160 160 160 160 160 160 240 240 240 240 1900 162 162 162 162 167 167 246 165 155 155 161 161 260 156 Overloaded Moves . | . . . . . . . . . . . . . . . . . . . . . . . . . . . . . . . Propulsion Burnouts . | . . . . . . . . . . . . . . . . . . . . . . . . . . . . . . . Robots Hopped 36 | . . . . . . . . . . . . . . . . . . . . . . . . . . . . . 36 . Cave-ins Triggered . | . . . . . . . . . . . . . . . . . . . . . . . . . . . . . . . Teleports 1 | . . . . . . . . . . . . . . . . . . . . . . . . . . . . . 1 . Exploration Rate (%) 51 | 2 54 17 79 98 89 74 40 12 81 67 69 64 10 83 56 79 39 26 52 51 81 61 17 41 96 16 23 19 92 22 Regions Visited 30 Branch Regions 20 Pre-discovered Areas 4 | . 1 . 1 . 1 . . . 1 . . . . . . . . . . . . . . . . . . . . . Known Exits Taken 8 | . . . . . . 1 . 1 . . . . . . . . 1 1 . . . 1 . . 1 1 1 . . . Unknown Exits Taken 22 | 1 1 1 1 1 1 . 1 . 1 1 1 1 1 1 1 1 . . 1 1 1 . 1 1 . . . 1 1 . Scrap Searched 4 | . . . . . . 1 . . . . . . . . . . . . 1 1 . 1 . . . . . . . . Spaces Dug 218 | . . . . 10 . 10 . . . . . 11 . . . . 12 5 30 . 1 11 11 19 4 22 10 7 26 29 Terrain Destroyed 1226 | . . . 13 27 . 16 . . 35 11 . 11 . . . . 15 35 67 . 9 26 67 192 7 41 24 44 176 410 Melee . | . . . . . . . . . . . . . . . . . . . . . . . . . . . . . . . Projectile 344 | . . . . . . . . . . . . . . . . . 11 2 . . 9 3 67 64 7 29 22 13 27 90 AOE 868 | . . . 13 27 . 16 . . 35 11 . 11 . . . . . 33 67 . . 23 . 127 . 10 . 28 149 318 Terrain Rammed . | . . . . . . . . . . . . . . . . . . . . . . . . . . . . . . . Walls Destroyed . | . . . . . . . . . . . . . . . . . . . . . . . . . . . . . . . Machines Disabled . | . . . . . . . . . . . . . . . . . . . . . . . . . . . . . . . Actions | -11 -10 -10 -9 -9 -9 -8 -8 -7 -7 -7 -7 -6 -6 -6 -6 -6 -6 -5 -5 -5 -5 -4 -4 -4 -4 -3 -2 -1 -1 -1 --------- Run | Scr Mat Min Mat Min Exi Min Mat Fac Low Low Dat Pro Fac Ext Cet Arc Hub Fac Upp Upp War Pro Fac Arm Lab Res Res Acc Com Ac0 Total 33328 | 13 403 64 1277 592 849 402 704 365 805 375 76 901 976 909 318 770 687 1014 341 344 929 883 731 686 1422 1580 750 1143 12660 359 Wait 7765 | . 40 4 79 6 32 18 290 20 8 . . 383 491 43 100 606 284 63 2 8 68 511 112 86 517 942 69 466 2509 8 Move 23211 | 9 321 60 1085 565 750 370 343 314 781 348 76 501 444 767 192 147 312 824 317 318 703 361 535 430 822 585 621 550 9520 240 Hop 34 | . . . . . . . . . . . . . . . . . . . . . . . . . . . . . 34 . Pick Up 276 | 2 4 . 20 1 20 . 7 6 . . . 1 13 4 2 1 7 16 1 2 9 . 7 4 16 3 7 8 107 8 Fast Attach 137 | . 3 . 8 . 4 . 9 3 1 . . . 3 4 2 2 . 7 . 1 6 1 6 11 15 7 4 5 29 6 Attach 79 | . 1 . 2 . 3 . 2 2 . . . . 3 1 3 . 3 8 . 1 1 . 3 3 3 3 2 4 27 4 Detach 62 | . 3 . 2 . 6 . 1 . . . . . . . 2 . . 2 . 1 1 . 1 1 2 2 . 2 35 1 Swap 228 | . . . 8 2 3 4 7 2 6 4 . 3 5 6 2 3 5 23 8 2 11 2 7 28 6 11 9 20 37 4 Drop 380 | . 4 . 24 1 26 2 19 8 1 . . . 6 8 6 5 7 20 1 3 16 1 11 16 30 5 11 12 130 7 Fire 854 | 2 20 . 42 13 . 5 24 10 7 14 . 5 11 7 9 6 68 50 11 7 19 7 45 107 11 19 27 73 154 81 Melee 10 | . . . . . 5 . . . . . . . . . . . . . . . . . . . . . . . 5 . Ram . | . . . . . . . . . . . . . . . . . . . . . . . . . . . . . . . Kick 23 | . 7 . . . . . . . . . . . . . . . . . . . . . . . . . . . 16 . Crush 69 | . . . 7 4 . 3 2 . 1 4 . 6 . 6 . . 1 1 1 1 . . 4 . . 3 . 3 22 . Escape Stasis 12 | . . . . . . . . . . . . . . . . . . . . . . . . . . . . . 12 . Rewire 188 | . . . . . . . . . . 5 . 2 . 63 . . . . . . 95 . . . . . . . 23 . Trap . | . . . . . . . . . . . . . . . . . . . . . . . . . . . . . . . Miscellaneous . | . . . . . . . . . . . . . . . . . . . . . . . . . . . . . . . Route ------- -11/Scrapyard -10/Materials (discovered 3 exits: *Mat / [*Min x2]) -10/Mines -9/Materials (discovered 4 exits: *Mat x3 / [*Min]) -9/Mines (discovered 3 exits: *Mat x2 / *Exi) -9/Exiles (discovered 2 exits: [*Min x2]) -8/Mines (discovered 2 exits: *Mat x2) -8/Materials -7/Factory (discovered 2 exits: *Low x2) -7/Lower Caves -7/Lower Caves (discovered 2 exits: *Fac / *Dat) -7/Data Miner -6/Proximity Caves -6/Factory (discovered 6 exits: *Fac x4 / Low / *Ext) -6/Extension (discovered 3 exits: *Fac x2 / [*Cet]) -6/Cetus (discovered 2 exits: *Fac / [*Arc]) -6/Archives (discovered 3 exits: *Fac / *Hub x2) -6/Hub_04(d) (discovered 2 exits: *Fac x2) -5/Factory (discovered 5 exits: *Fac x3 / *Upp x2) -5/Upper Caves -5/Upper Caves -5/Warlord -4/Proximity Caves -4/Factory (discovered 5 exits: *Res x4 / *Arm) -4/Armory (discovered 2 exits: *Res / [*Lab]) -4/Lab -3/Research (discovered 5 exits: *Res x3 / Qua x2) -2/Research -1/Access -1/Command (discovered 3 exits: [*Sur x2] / [*Ac0]) -1/Access_0 History --------- Turn | Location | Event 7 | -11/Scrapyard | Discovered new exit (range 3) 20 | -11/Scrapyard | Entered Materials 90 | -10/Materials | Discovered new exit (range 12) 316 | -10/Materials | Build established: Mutant 376 | -10/Materials | Core integrity fell below 50% 400 | -10/Materials | Discovered new exit (range 7) 517 | -10/Materials | Discovered new exit (range 9) 527 | -10/Materials | Entered Mines 542 | -10/Mines | Discovered new exit (range 11) 603 | -10/Mines | Entered Materials 603 | -9/Materials | Accompanied by 2 allies 603 | -9/Materials | Evolved 2 slots: Propulsion x1, Utility x1 608 | -9/Materials | Led the pair of lost Derelicts to an unsafe place 1186 | -9/Materials | Discovered new exit (range 16) 1249 | -9/Materials | Build established: Scavenger-Mutant 1700 | -9/Materials | Discovered new exit (range 14) 1958 | -9/Materials | Central database locked down 2115 | -9/Materials | Discovered new exit (range 7) 2238 | -9/Materials | Repaired Lgt. Treads 2350 | -9/Materials | Build established: Mutant 2386 | -9/Materials | Discovered new exit (range 16) 2588 | -9/Materials | Entered Mines 2609 | -9/Mines | Identified exit to Materials 3033 | -9/Mines | Assembled infested the area 3038 | -9/Mines | Assisted by a Guerilla fighting off Assembled 3075 | -9/Mines | Destroyed 12 combat bots 3098 | -9/Mines | Discovered exit to Materials (range 9) 3188 | -9/Mines | Received a Rocket Launcher from a helpful Derelict 3286 | -9/Mines | Assisted by bots powering up and referring to "LRC-V3" 3531 | -9/Mines | Deemed a non-threat by the Exiles lab entrance 3531 | -9/Mines | Discovered new exit (range 5) 3543 | -9/Mines | Entered Exiles 3543 | -9/Exiles | Accompanied by 3 allies 3564 | -9/Exiles | Discovered new exit (range 15) 3583 | -9/Exiles | Met 8R-AWN 3609 | -9/Exiles | Met EX-HEX 3652 | -9/Exiles | Met EX-BIN 3676 | -9/Exiles | Met EX-DEC 3683 | -9/Exiles | Learned location of Zion (-6) 3745 | -9/Exiles | Discovered new exit (range 12) 3836 | -9/Exiles | Visited The Gauntlet 3926 | -9/Exiles | Aligned with FarCom system 3927 | -9/Exiles | Given EX-Vault access code 3939 | -9/Exiles | Opened EX-Vault 3943 | -9/Exiles | Found 0b10 Alert Chip 3954 | -9/Exiles | Warned to stay clear of 0b10 Research branches 4327 | -9/Exiles | Build established: Scavenger-Mutant 4422 | -9/Exiles | Left Exiles lab with 0b10 Alert Chip 4422 | -9/Exiles | Entered Mines 4422 | -8/Mines | Accompanied by 3 allies 4639 | -8/Mines | Discovered exit to Materials (range 10) 4742 | -8/Mines | Build established: Mutant 5011 | -8/Mines | Discovered exit to Materials (range 14) 5056 | -8/Mines | Entered Materials 5056 | -8/Materials | Accompanied by 2 allies 5056 | -8/Materials | Evolved 2 slots: Utility x1, Weapon x1 5372 | -8/Materials | Build established: Skirmisher 5728 | -8/Materials | Discovered new exit (range 15) 6013 | -8/Materials | Entered Factory 6013 | -7/Factory | Evolved 2 slots: Propulsion x1, Utility x1 6034 | -7/Factory | Build established: Gunner 6335 | -7/Factory | Garrison activated, responded to threat 6466 | -7/Factory | Discovered new exit (range 12) 6534 | -7/Factory | Identified exit to Lower Caves 6584 | -7/Factory | Entered Lower Caves 7054 | -7/Lower Caves | Destroyed 9 combat bots 7068 | -7/Lower Caves | Learned Armory trap positions 7068 | -7/Lower Caves | Learned Extension trap positions 7068 | -7/Lower Caves | Learned location of 1 exit from Factory 7068 | -7/Lower Caves | Learned location of Armory (-4) 7108 | -7/Lower Caves | Learned Factory stockpile data 7324 | -7/Lower Caves | Build established: Mutant 7347 | -7/Lower Caves | Attacked by a delusional Derelict stockpiling parts 7528 | -7/Lower Caves | Discovered new exit (range 13) 7645 | -7/Lower Caves | Build established: Gunner 7875 | -7/Lower Caves | Entered another Lower Caves area 8003 | -7/Lower Caves | Learned Factory terminal intel 8011 | -7/Lower Caves | Discovered new exit (range 15) 8347 | -7/Lower Caves | Attracted the attention of an 0b10 outpost 8382 | -7/Lower Caves | Destroyed 7 combat bots 8413 | -7/Lower Caves | Discovered new exit (range 3) 8489 | -7/Lower Caves | Entered Data Miner 8489 | -7/Data Miner | Accompanied by 1 ally 8489 | -7/Data Miner | Discovered new exit (range 6) 8520 | -7/Data Miner | Met Data Miner 8571 | -7/Data Miner | Received God Mode back door access code from Data Miner 8611 | -7/Data Miner | Entered Proximity Caves 8611 | -6/Proximity Caves | Accompanied by 1 ally 8643 | -6/Proximity Caves | Escorted by Enhanced Grunt 8662 | -6/Proximity Caves | Learned location of 1 exit from Factory 9711 | -6/Proximity Caves | Discovered new exit (range 10) 10127 | -6/Proximity Caves | Entered Factory 10127 | -6/Factory | Accompanied by 2 allies 10127 | -6/Factory | Evolved 2 slots: Propulsion x1, Weapon x1 10128 | -6/Factory | Identified exit to Factory 10128 | -6/Factory | Identified exit to Lower Caves 10130 | -6/Factory | Loaded intel: 28 terminal locations 10425 | -6/Factory | Build established: Scavenger-Gunner 11046 | -6/Factory | Fabricated Adv. Cooling System? 11103 | -6/Factory | Discovered new exit (range 16) 11543 | -6/Factory | Entered Extension 11544 | -6/Extension | Loaded intel: 23 trap records 11551 | -6/Extension | Rescued a captive Derelict 11551 | -6/Extension | Rescued a captive Derelict 11552 | -6/Extension | Rescued a captive Derelict 11558 | -6/Extension | Rescued a captive Derelict 11561 | -6/Extension | Rescued a captive Derelict 11562 | -6/Extension | Rescued a captive Derelict 11566 | -6/Extension | Rescued a captive Derelict 11586 | -6/Extension | Rescued a captive Derelict 12155 | -6/Extension | Build established: Commander-Gunner 12370 | -6/Extension | Spotted B-75 Beast 12382 | -6/Extension | Allies destroyed B-75 Beast 12385 | -6/Extension | Spotted B-75 Beast 12388 | -6/Extension | Discovered exit to Factory (range 15) 12389 | -6/Extension | Allies destroyed B-75 Beast 12409 | -6/Extension | Extracted ID and sensor layout for unrecognized location from A7's data core 12645 | -6/Extension | Discovered new exit (range 16) 12646 | -6/Extension | Discovered exit to Factory (range 15) 13044 | -6/Extension | Entered Cetus 13044 | -6/Cetus | Accompanied by 10 allies 13068 | -6/Cetus | Spotted Cetus Guard 13068 | -6/Cetus | Spotted Cetus Guard 13071 | -6/Cetus | Spotted Cetus Guard 13080 | -6/Cetus | Spotted Cetus Guard 13082 | -6/Cetus | Allies destroyed Cetus Guard 13084 | -6/Cetus | Allies destroyed Cetus Guard 13090 | -6/Cetus | Allies destroyed Cetus Guard 13090 | -6/Cetus | Allies destroyed Cetus Guard 13167 | -6/Cetus | Discovered new exit (range 15) 13195 | -6/Cetus | Spotted Cetus Guard 13195 | -6/Cetus | Spotted Cetus Guard 13198 | -6/Cetus | Spotted Cetus Guard 13199 | -6/Cetus | Allies destroyed Cetus Guard 13200 | -6/Cetus | Spotted Cetus Guard 13209 | -6/Cetus | Allies destroyed Cetus Guard 13211 | -6/Cetus | Allies destroyed Cetus Guard 13212 | -6/Cetus | Allies destroyed Cetus Guard 13397 | -6/Cetus | Build established: Scavenger-Gunner 13408 | -6/Cetus | Discovered exit to Factory (range 15) 13416 | -6/Cetus | Met Revision 17 13500 | -6/Cetus | Entered Archives 13500 | -6/Archives | Accompanied by 1 ally 13571 | -6/Archives | Discovered exit to Factory (range 15) 13595 | -6/Archives | Discovered new exit (range 16) 13632 | -6/Archives | Discovered new exit (range 16) 15223 | -6/Archives | Entered Hub_04(d) 15223 | -6/Hub_04(d) | Garrison activated, responded to threat 15506 | -6/Hub_04(d) | Spotted B-75 Beast 15517 | -6/Hub_04(d) | Destroyed B-75 Beast 15520 | -6/Hub_04(d) | Garrison activated, responded to threat 15788 | -6/Hub_04(d) | Network Hub disabled 15987 | -6/Hub_04(d) | Discovered exit to Factory (range 9) 16119 | -6/Hub_04(d) | Discovered exit to Factory (range 12) 16164 | -6/Hub_04(d) | Spotted Lightning 16177 | -6/Hub_04(d) | Spotted Lightning 16177 | -6/Hub_04(d) | Spotted Lightning 16194 | -6/Hub_04(d) | Destroyed Lightning 16202 | -6/Hub_04(d) | Network Hub disabled 16206 | -6/Hub_04(d) | Destroyed Lightning 16212 | -6/Hub_04(d) | Spotted Lightning 16213 | -6/Hub_04(d) | Spotted Lightning 16215 | -6/Hub_04(d) | Spotted Lightning 16220 | -6/Hub_04(d) | Destroyed Lightning 16223 | -6/Hub_04(d) | Entered Factory 16223 | -5/Factory | Evolved 2 slots: Power x1, Utility x1 16257 | -5/Factory | Discovered new exit (range 4) 16264 | -5/Factory | Identified exit to Factory 16506 | -5/Factory | Repaired Arm. Treads 17038 | -5/Factory | Spotted B-75 Beast 17041 | -5/Factory | Destroyed B-75 Beast 17061 | -5/Factory | Garrison activated, responded to threat 17077 | -5/Factory | Identified exit to Upper Caves 17123 | -5/Factory | First assault squad dispatched 17139 | -5/Factory | Incoming assault squad redirected 17148 | -5/Factory | Incoming assault squad redirected 17319 | -5/Factory | Destroyed 11 combat bots 17590 | -5/Factory | Discovered exit to Factory (range 13) 17676 | -5/Factory | Discovered exit to Factory (range 10) 17752 | -5/Factory | Incoming assault squad redirected 17838 | -5/Factory | Entered Upper Caves 17844 | -5/Upper Caves | Encountered a Warlord checkpoint 17991 | -5/Upper Caves | Learned Factory terminal intel 18242 | -5/Upper Caves | Discovered new exit (range 9) 18398 | -5/Upper Caves | Entered another Upper Caves area 18497 | -5/Upper Caves | Learned 4 Factory zone layouts 18712 | -5/Upper Caves | Learned Factory security intel 18866 | -5/Upper Caves | Discovered new exit (range 15) 18952 | -5/Upper Caves | Entered Warlord 19006 | -5/Warlord | System corruption cleaned by Quarantine Array 19191 | -5/Warlord | Found Prototype Special Weapon 19195 | -5/Warlord | Found Prototype Special Weapon 19198 | -5/Warlord | Found Prototype Special Weapon 19201 | -5/Warlord | Found Prototype Special Weapon 19203 | -5/Warlord | Identified RU-N14's Throwing Claymores v3 (x4) 19312 | -5/Warlord | Learned Armory security intel 19312 | -5/Warlord | Learned Research scanalyzer intel 19312 | -5/Warlord | Learned Research garrison access intel 19313 | -5/Warlord | Learned 4 Research zone layouts 19768 | -5/Warlord | Met Warlord 19793 | -5/Warlord | Warlord's base attacked by MAIN.C 20137 | -5/Warlord | Warlord forces counterattacked 20148 | -5/Warlord | Spotted Executioner 20153 | -5/Warlord | Allies destroyed Executioner 20157 | -5/Warlord | Spotted Executioner 20159 | -5/Warlord | Allies destroyed Executioner 20220 | -5/Warlord | Spotted Executioner 20237 | -5/Warlord | Discovered new exit (range 15) 20294 | -5/Warlord | Spotted Executioner 20294 | -5/Warlord | Spotted Executioner 20294 | -5/Warlord | Spotted Striker 20297 | -5/Warlord | Destroyed Executioner 20339 | -5/Warlord | Found Prototype Device 20339 | -5/Warlord | Identified Adv. Kinecellerator 20355 | -5/Warlord | Entered Proximity Caves 20371 | -4/Proximity Caves | Learned Research terminal intel 20472 | -4/Proximity Caves | Spotted B-86 Titan 20481 | -4/Proximity Caves | Allies destroyed B-86 Titan 20781 | -4/Proximity Caves | Attracted the attention of an 0b10 checkpoint 20841 | -4/Proximity Caves | Discovered exit to Factory (range 16) 21492 | -4/Proximity Caves | Entered Factory 21492 | -4/Factory | Evolved 2 slots: Propulsion x1, Utility x1 21493 | -4/Factory | Identified exit to Research 21495 | -4/Factory | Loaded intel: 26 terminal locations 21977 | -4/Factory | Spotted B-86 Titan 21989 | -4/Factory | Destroyed B-86 Titan 22242 | -4/Factory | First assault squad dispatched 22269 | -4/Factory | Incoming assault squad redirected 22430 | -4/Factory | Fabricated R-06 Scavenger? 22501 | -4/Factory | Discovered new exit (range 12) 22641 | -4/Factory | Entered Armory 22642 | -4/Armory | Loaded intel: 35 trap records 22800 | -4/Armory | Found Antimissile System 23033 | -4/Armory | Destroyed 14 combat bots 23085 | -4/Armory | Discovered exit to Research (range 9) 23141 | -4/Armory | First assault squad dispatched 23156 | -4/Armory | Incoming assault squad redirected 23159 | -4/Armory | Incoming assault squad redirected 23167 | -4/Armory | Incoming assault squad redirected 23377 | -4/Armory | Core integrity fell below 50% 23589 | -4/Armory | Destroyed 8 combat bots 23630 | -4/Armory | High security lockdown imminent 23710 | -4/Armory | High security lockdown engaged 23770 | -4/Armory | Discovered new exit (range 5) 23792 | -4/Armory | Entered Lab 23792 | -4/Lab | Discovered exit to Research (range 9) 23809 | -4/Lab | Hidden lab's door opened automatically 23809 | -4/Lab | Sensor layout match revealed 23810 | -4/Lab | Gained access to the hidden lab's interior 24066 | -4/Lab | Build established: Scavenger-Mutant 24142 | -4/Lab | Detected by scanners 24153 | -4/Lab | Confronted by A5 24168 | -4/Lab | Destroyed A5 24277 | -4/Lab | Found Alien Artifact 24277 | -4/Lab | Identified Integrated Reactor 24277 | -4/Lab | Installed Integrated Reactor, increased core energy generation (+10) 24292 | -4/Lab | Found Alien Artifact 24776 | -4/Lab | Found Alien Artifact 24852 | -4/Lab | Found Prototype Energy Cannon 24857 | -4/Lab | Found Prototype Energy Cannon 24864 | -4/Lab | Found Prototype Protection 24864 | -4/Lab | Identified Med. Regenerative Plating 24901 | -4/Lab | Identified Potential Cannon (x2) 25172 | -4/Lab | Found Prototype Hackware 25172 | -4/Lab | Identified Exp. System Shield 25206 | -4/Lab | Found Prototype Hackware 25274 | -4/Lab | Found Prototype Hackware 25274 | -4/Lab | Identified Deep Network Scanner 25413 | -4/Lab | Build established: Scavenger-Gunner 25657 | -4/Lab | Entered Research 25657 | -3/Research | Evolved 2 slots: Power x1, Utility x1 25658 | -3/Research | Identified exit to Quarantine 25659 | -3/Research | Loaded intel: 23 terminal locations 25660 | -3/Research | Loaded intel: 5 scanalyzer locations 25661 | -3/Research | Loaded intel: 3 garrison access locations 25669 | -3/Research | Identified exit to Research 25758 | -3/Research | Identified Core Expander 25758 | -3/Research | Identified Transdimensional Reconstructor 25758 | -3/Research | Installed Core Expander, added new Weapon slot 25857 | -3/Research | Revision forces began assault on 0b10 25889 | -3/Research | Met up with Revision 17++ 26035 | -3/Research | Local machine network offline 26063 | -3/Research | Fabricated S-43 Plague? 26208 | -3/Research | Intercept squad dispatched 26357 | -3/Research | Research terminal network offline 26441 | -3/Research | Build established: Generator-Gunner 27395 | -3/Research | Spotted Striker 27397 | -3/Research | Allies destroyed Striker 27437 | -3/Research | Spotted Executioner 27445 | -3/Research | Destroyed Executioner 27447 | -3/Research | Spotted Striker 27453 | -3/Research | Allies destroyed Striker 27474 | -3/Research | Found Exp. Core Analyzer 27509 | -3/Research | Found Adv. Kinecellerator 27539 | -3/Research | Spotted Executioner 27541 | -3/Research | Destroyed Executioner 27543 | -3/Research | Spotted Striker 27548 | -3/Research | Destroyed Striker 27565 | -3/Research | Found Exp. Targeting Computer 27611 | -3/Research | Entered another Research area 27611 | -2/Research | Warlord forces began assault on 0b10 27611 | -2/Research | Evolved 2 slots: Propulsion x2 27623 | -2/Research | Spotted B-90 Cyclops 27628 | -2/Research | Destroyed B-90 Cyclops 27721 | -2/Research | Research machine network offline 27767 | -2/Research | Build established: Scavenger-Gunner 27808 | -2/Research | Met up with Warlord 27871 | -2/Research | Borebot progress halted 28102 | -2/Research | Borebot progress halted 28106 | -2/Research | Borebot progress halted 28206 | -2/Research | Spotted Tracker 28208 | -2/Research | Allies destroyed Tracker 28210 | -2/Research | Spotted Tracker 28219 | -2/Research | Destroyed Tracker 28221 | -2/Research | Spotted Combat Programmer 28227 | -2/Research | Spotted Combat Programmer 28231 | -2/Research | Allies destroyed Combat Programmer 28262 | -2/Research | Found Exp. Targeting Computer 28287 | -2/Research | Discovered new exit (range 15) 28348 | -2/Research | Spotted Striker 28351 | -2/Research | Spotted Striker 28718 | -2/Research | Identified exit to Access 28797 | -2/Research | Entered Access 28797 | -1/Access | Evolved 2 slots: Utility x2 28987 | -1/Access | Destroyed B-99 Colossus 29547 | -1/Access | First assault squad dispatched 29573 | -1/Access | Intercept squad dispatched 29602 | -1/Access | Spotted Tracker 29602 | -1/Access | Spotted Tracker 29606 | -1/Access | Allies destroyed Tracker 29607 | -1/Access | Destroyed Tracker 29671 | -1/Access | Spotted Combat Programmer 29671 | -1/Access | Spotted Combat Programmer 29825 | -1/Access | Incoming assault squad redirected 30063 | -1/Access | Discovered new exit (range 7) 30067 | -1/Access | Incoming assault squad redirected 30421 | -1/Access | Entered Command 30967 | -1/Command | First assault squad dispatched 30989 | -1/Command | Incoming assault squad redirected 31172 | -1/Command | Identified Exp. Hacking Suite 31180 | -1/Command | Disengaged cave seal 31180 | -1/Command | Derelicts emerged from the dark tunnel 31181 | -1/Command | Welcomed Warlord to Command 31261 | -1/Command | Warlord commented on Warlord statues 31268 | -1/Command | Spotted Combat Programmer 31269 | -1/Command | Spotted Combat Programmer 31276 | -1/Command | Allies destroyed Combat Programmer 31277 | -1/Command | Spotted M Guard 31285 | -1/Command | Destroyed M Guard 31314 | -1/Command | All MAIN.C guards destroyed 31316 | -1/Command | Found Prototype Device 31316 | -1/Command | Identified AEGIS Remote Shield 31322 | -1/Command | Found Prototype Reactor 31322 | -1/Command | Identified Zero-point Reactor 31330 | -1/Command | Found Exp. Targeting Computer 31338 | -1/Command | Found Zero-point Reactor 31345 | -1/Command | Found AEGIS Remote Shield 31358 | -1/Command | Found Prototype Launcher 31391 | -1/Command | Incoming investigation squad redirected 31459 | -1/Command | Met MAIN.C 31462 | -1/Command | Warlord shut down involuntarily 31463 | -1/Command | Found Meganuke 31497 | -1/Command | Allies destroyed MAIN.C Shell 31498 | -1/Command | MAIN.C activated Command garrisons 31498 | -1/Command | 0b10 Conduit disabled 31525 | -1/Command | Destroyed MAIN.C 31544 | -1/Command | Found Zero-point Reactor 31547 | -1/Command | Discovered new exit (range 32) 31547 | -1/Command | Discovered new exit (range 94) 31547 | -1/Command | Identified Ragnarok Missile Launcher 31547 | -1/Command | Extracted map data and part IDs from MAIN.C's data core 31552 | -1/Command | Found Exp. Powered Armor 31575 | -1/Command | Spotted B-99 Colossus 31581 | -1/Command | Destroyed B-99 Colossus 31683 | -1/Command | Spotted B-99 Colossus 31740 | -1/Command | Destroyed 8 combat bots 31799 | -1/Command | Found Exp. Shield Generator 32776 | -1/Command | Build established: Scavenger-Mutant 34343 | -1/Command | Found Zero-point Reactor 34538 | -1/Command | Build established: Scavenger-Sprinter 34696 | -1/Command | Phase Generator disabled 35125 | -1/Command | Attacked by Warlord forces 35791 | -1/Command | Found Exp. Powered Armor 35794 | -1/Command | Found Exp. Targeting Computer 35797 | -1/Command | Found Blast Cannon 35800 | -1/Command | Found Blast Cannon 35847 | -1/Command | Found Spectral Analyzer 36114 | -1/Command | Found Multirail 36116 | -1/Command | Found Multirail 36156 | -1/Command | Found Z-bomb Delivery System 36579 | -1/Command | Found Vortex Chain Reactor 36583 | -1/Command | Found Adv. Kinecellerator 37368 | -1/Command | Found Exp. Targeting Computer 37375 | -1/Command | Found Adv. Kinecellerator 38115 | -1/Command | Build established: Generator-Gunner 39496 | -1/Command | Warped through subspace to slip node 39496 | -1/Command | Discovered new exit (range 5) 39506 | -1/Command | Entered Access_0 39507 | -1/Access_0 | Met Architect 39510 | -1/Access_0 | Allies destroyed A8 39511 | -1/Access_0 | Architect warped through subspace 39544 | -1/Access_0 | Architect warped through subspace 39574 | -1/Access_0 | Architect warped through subspace 39594 | -1/Access_0 | Subspace Access Node disabled 39604 | -1/Access_0 | Architect warped through subspace 39637 | -1/Access_0 | Architect warped through subspace 39657 | -1/Access_0 | Architect warped through subspace 39668 | -1/Access_0 | Found Prototype Device 39671 | -1/Access_0 | Found Exp. Weapon Cycler 39683 | -1/Access_0 | Architect warped through subspace 39687 | -1/Access_0 | Found Exp. Targeting Computer 39707 | -1/Access_0 | Architect warped through subspace 39707 | -1/Access_0 | Core integrity fell below 50% 39724 | -1/Access_0 | Architect warped through subspace 39738 | -1/Access_0 | Architect warped through subspace 39771 | -1/Access_0 | Architect warped through subspace 39811 | -1/Access_0 | A6 warped into view 39830 | -1/Access_0 | Destroyed A6 39862 | -1/Access_0 | Architect warped through subspace 39872 | -1/Access_0 | Subspace Access Node disabled 39892 | -1/Access_0 | Architect warped through subspace 39901 | -1/Access_0 | Architect warped through subspace 39924 | -1/Access_0 | Architect warped through subspace 39934 | -1/Access_0 | Identified Desublimator 39940 | -1/Access_0 | Architect warped through subspace 39960 | -1/Access_0 | Architect warped through subspace 39972 | -1/Access_0 | Architect warped through subspace 39989 | -1/Access_0 | Architect warped through subspace 40008 | -1/Access_0 | Subspace Access Node disabled 40027 | -1/Access_0 | Architect warped through subspace 40064 | -1/Access_0 | Architect warped through subspace 40070 | -1/Access_0 | Found Exp. Weapon Cycler 40076 | -1/Access_0 | Core integrity fell below 20% 40087 | -1/Access_0 | Architect warped through subspace 40097 | -1/Access_0 | Subspace Access Node disabled 40104 | -1/Access_0 | Core destroyed Last Messages --------------- 40083_ Slug penetrates Architect. 40083_ Architect knocked back. 40083_ HV Slug penetrates Wall. 40083_ Blast Slug penetrates Architect. 40083_ Architect knocked back. 40084_ Penetrated by Quantum Shear. 40084_ Quantum Shear penetrates Wall. 40086_ Slug penetrates Wall. 40086_ HV Slug penetrates Wall. 40086_ Blast Slug penetrates Architect. Architect warps through subspace. 40088_ The unstable cave ceiling collapses. 40092_ Penetrated by Quantum Shear. 40092_ Multirail destroyed. 40094_ Penetrated by Quantum Shear. 40097_ HV Slug penetrates Subspace Access Node. 40097_ Subspace Access Node disabled. 40099_ Penetrated by Quantum Shear. 40101_ Quantum Shear penetrates Wall. 40101_ Penetrated by Quantum Shear. Map ----- +----------------------------------------------------+ | # ???????????????? | | % # ?????????????## | | # ????????????? | | % # #!* ?????######## | | ! ! ?????# | | # = ##?????# """" | | # #?????# "& " | | ###??????# """" | | # % = #??????????? | | ### # % ### ##?????????????# | | # % %# ## ; #????????????????# | | ## # # != ## ; ;##????????????????# | | ### #### ;; #??????????????### | | ##?###* ;#### ;; ##???????????### ## | | ######???# % ;### ;;;#??????????## ## | | ?????????# ;;## ; #####???#### | | ??????????# ;# ;; ;; ##### # | | ??????????# ;#;;;; ;;; ; # | | ??????????### ; ;;; | | ????????????## ; ; ;; | | ?????????????##; ;; ! | | ??????????????## ; ! * ! | | ???????????????### % %% = # | | ?????????????????##% ;#=;; # | | ??????????????????### ;;; ### # # # ## | | ????????????????????## @% ; ####?## # #? | | ????????????????????#; % % # #?????## #####? | | ????????????????????## ; #????????## #????? | | ?????????????????????# ;;;#????????#####????? | | ????????????????????# ;;##?????????????????? | | ??????????????????? ;;"?????????????????? | | ??????????????????# ## 0 "????????????????? | | ??????????????????# ?## ""???????????????? | | ?????????????????? ???# ;##### "??????????????? | | ?????????????????###???# ;#????; ##?????????????? | | ???????????????????????# ##????? #??????????????? | | ???????????????????????# #??????? ??????????????? | | ??????????????????????? ???????? ??????????????? | | ???????????????????????##????????????????????????? | | ?????????????????????????????????????????????????? | | ?????????????????????????????????????????????????? | | ?????????????????????????????????????????????????? | | ?????????????????????????????????????????????????? | | ?????????????????????????????????????????????????? | | ?????????????????????????????????????????????????? | | ?????????????????????????????????????????????????? | | ?????????????????????????????????????????????????? | | ?????????????????????????????????????????????????? | | ?????????????????????????????????????????????????? | | ?????????????????????????????????????????????????? | +----------------------------------------------------+ Best States ------------- Heat Dissipation 142 Energy Generation 116 Energy Capacity 1330 Matter Stores 1300 Matter Capacity 1300 Sight Range 24 Robot Scan Range 14 Terrain Scan Density 10 Jamming Range 16 Power Amplification 40 Armor Coverage 400 Resistance: EM 25 Weapon Shielding 66 Point Defense Rating 240 Weapon Cycling 30 Evasion (%) 66 Targeting Accuracy 24 Target Analysis 8 Core Analysis 8 Armor Integrity Analysis 40 Recoil Reduction 8 Kinecelleration 50 Salvage Targeting 2 Offensive Hacking 62 Item Schematics ----------------- Combat Drone Bay | -7/Data Miner | Free Lgt. Regenerative Plating | -7/Data Miner | Free Cld. Cesium-ion Thruster | -7/Data Miner | Free Thermal Defense Suite | -7/Data Miner | Free Shock Maul | -7/Data Miner | Free Antigrav System | -7/Data Miner | Free Adv. Cooling System | -7/Data Miner | Free Imp. Remote Datajack | -7/Data Miner | Free Magnetic Acceleration Cannon | -7/Data Miner | Free Robot Schematics ------------------ Y-54 Guardian | -7/Data Miner | Free L-41 Fighter | -7/Data Miner | Free P-60 Hacker | -7/Data Miner | Free B-48 Gladiator | -7/Data Miner | Free R-10 Processor | -7/Data Miner | Free S-27 Virus | -7/Data Miner | Free Fabricated ------------ Adv. Cooling System | x1 | -6/Factory R-06 Scavenger | x1 | -4/Factory | Preloaded S-43 Plague | x4 | -3/Research | Preloaded Alien Tech Used ----------------- Integrated Reactor Core Expander Transdimensional Reconstructor Achievements -------------- None Challenges ------------ None Player 2 | -11 -10 -10 -9 -9 -9 -8 -8 -7 -7 -7 -7 -6 -6 -6 -6 -6 -6 -5 -5 -5 -5 -4 -4 -4 -4 -3 -2 -1 -1 -1 ---------- Run | Scr Mat Min Mat Min Exi Min Mat Fac Low Low Dat Pro Fac Ext Cet Arc Hub Fac Upp Upp War Pro Fac Arm Lab Res Res Acc Com Ac0 Slots Evolved 18 | . . 2 . . . 2 2 . . . . 2 . . . . 2 . . . . 2 . . 2 2 2 . . . Power 2 | . . . . . . 1 . . . . . . . . . . . . . . . 1 . . . . . . . . Propulsion 6 | . . 1 . . . . 2 . . . . 1 . . . . . . . . . . . . 1 1 . . . . Utility 6 | . . . . . . . . . . . . 1 . . . . 1 . . . . 1 . . . 1 2 . . . Weapon 4 | . . 1 . . . 1 . . . . . . . . . . 1 . . . . . . . 1 . . . . . Parts Attached 333 | . 12 . 22 . . . 6 6 4 3 . . 12 10 3 2 14 22 1 8 22 . 18 53 2 12 22 20 53 6 Parts Lost 76 | . . . 1 . . . . . 1 1 . . 3 . . . 2 5 1 5 6 . 1 20 . . . 6 5 19 Damage Taken 25432 | . 269 . 406 140 . 57 184 90 332 188 . 36 304 21 125 84 1749 1889 404 641 724 33 1177 3888 285 237 1555 3055 2190 5369 Core 2491 | . 124 . 43 . . . 51 . 65 . . 6 46 . 14 . 197 208 21 58 23 . 137 359 25 34 115 241 123 601 Player 2/Cogmind (%) 68 | . 62 . 56 . . . 52 . 69 . . 33 100 . 100 . 82 82 100 100 100 . 70 81 100 66 100 93 56 57 Absorbed by Shields 3241 | . . . . . . . . . . . . . 36 . 6 11 . . . 28 . . . . . . . . 330 2830 Damage Inflicted 51380 | . 356 . 1325 443 . 286 1004 373 535 399 . 156 596 1164 755 439 2843 2515 994 701 3919 329 2498 2603 455 1242 2895 5894 7526 9135 Player 2/Cogmind (%) 46 | . 54 . 58 36 . 59 56 47 27 26 . 40 52 67 58 56 54 40 46 71 79 37 57 19 54 52 65 43 39 53 Combat Hostiles Destroyed 209 | . 3 . 12 8 . 5 9 2 5 6 . 3 4 . 2 2 15 15 7 5 15 4 11 12 . 6 7 21 23 7 Player 2/Cogmind (%) 39 | . 42 . 57 34 . 71 50 25 29 35 . 50 50 . 33 50 51 30 41 83 57 57 47 16 . 54 46 40 41 43 Game ------ Seed ResetShadingScanner Manual? 0 Play Time 05:02:39 Cumulative 652.0 hours Start 2022.03.17 @ 19:10:11 End 2022.03.18 @ 20:58:44 Sessions 5 Manual Loads 0 Difficulty Rogue Special Mode AFD2020/Player2 Game No. 297 Rogue 296 Adventurer 1 Explorer 0 Win Type - Total 68 Types 22/8/11/3/1/0/22/1/0 Lore% 97 Gallery% 99 Achievement% 87 Wizard Run 0 Options --------- ASCII 1 Keyboard 1 Movement Numpad Keybinds 0 Fullscreen 0 Font 18/Smallcaps Map View 76x50 Tactical HUD 1 Map Filters NONE Filters NONE Steam 1 RUN: eebcadbe-eb68-4809-be85-9af9d54d1c51